Workbook

Sheet A1.1 Distributor Information
C3: ="Name of LDC: " &D8 -> Name of LDC: EPCOR Natural Gas Limited Partnership
C4: ="OEB Application Number: " & D9 -> OEB Application Number: EB-2022-0184 Exhibit A - 2023 Custom Incentive Application
C6: Distributor Information
C8: Distributor Name | D8: EPCOR Natural Gas Limited Partnership
C9: OEB Application Number | D9: EB-2022-0184 Exhibit A - 2023 Custom Incentive Application
C12: =MID(CELL("filename",A1),FIND("]",CELL("filename",A1))+1,255) -> A1.1 Distributor Information

Sheet B1.1 Current Distribution Rates
C2: ='A1.1 Distributor Information'!C3 -> Name of LDC: EPCOR Natural Gas Limited Partnership
C3: ='A1.1 Distributor Information'!C4 -> OEB Application Number: EB-2022-0184 Exhibit A - 2023 Custom Incentive Application
C5: Current Distribution Tariff Sheet Rates
E7: Fixed | G7: Delivery Charge | J7: Delivery Charge
C8: Rate Class | E8: Monthly Base | F8: =OneDollar -> Bill 32 Rate | G8: Tier 1 | H8: Tier 2 | I8: Tier 3 | J8: Contract Demand | K8: Gas Supply | L8: Upstream Recovery Charge | M8: Transportation & Storage Charge | N8: Transportation Charge From Dawn | O8: Transportation Charge From Kirkwall | P8: Transportation Charge From Parkway | Q8: Federal Carbon Charge
E9: $/month | F9: $ / month | G9: ₵ / m3 | H9: ₵ / m3 | I9: ₵ / m3 | J9: ₵ /contracted m3 | K9: ₵ / m3 | L9: (A) | M9: ₵ / m3 | N9: ₵ /contracted m3 | O9: ₵ /contracted m3 | P9: ₵ /contracted m3 | Q9: ₵ / m3
C10: Rate 1 | D10: General Firm Service | E10: 26.272398 | F10: 1 | G10: 28.1485611 | H10: 27.59406879 | I10: 26.77899261 | K10: 30.6902 | L10: 1.474 | M10: 2.6982 | Q10: 9.79
C11: Rate 6 | D11: Large Volume General Firm Service | E11: 107.158365 | F11: 1 | G11: 25.96778901 | H11: 23.3710203 | I11: 22.20231642 | K11: =K10 -> 30.6902 | L11: 2.92 | M11: 5.6413 | Q11: 9.79
C12: Rate 11 | D12: Large Volume Seasonal Service | E12: 214.306539 | F12: 1 | G12: 16.1303148 | H12: 16.1303148 | I12: 16.1303148 | K12: =K10 -> 30.6902 | L12: 0.0352 | M12: 1.8166 | Q12: 9.79
C13: Rate 16 | D13: Contracted Firm Service | E13: 1575.783375 | F13: 1 | J13: 107.4830503 | L13: 14.2434 | N13: 18.2999 | O13: 11.848 | P13: 11.848 | Q13: 9.79
C14: (A) Rates 1, 6, and 11 all charged on cents / m3 basis. Rate 16 billed on cents / m3 of contracted demand basis
C18: Name for $1 Charge: | D18: Bill 32 Rate

Sheet B1.2 Billing Determinants
C2: ='A1.1 Distributor Information'!C3 -> Name of LDC: EPCOR Natural Gas Limited Partnership
C3: ='A1.1 Distributor Information'!C4 -> OEB Application Number: EB-2022-0184 Exhibit A - 2023 Custom Incentive Application
C5: Billing Determinants
E7: Fixed | F7: Delivery Charge | I7: Delivery Charge
C8: Rate Class | E8: Monthly Base | F8: Tier 1 | G8: Tier 2 | H8: Tier 3 | I8: Contract Demand | J8: Gas Supply
C9: Rate 1 | D9: General Firm Service | E9: 4887 | F9: 3391849 | G9: 1847677 | H9: 263269 | J9: 5502795
C10: Rate 6 | D10: Large Volume General Firm Service | E10: 35 | F10: 287896 | G10: 903329 | H10: 890107 | J10: 2081331
C11: Rate 11 | D11: Large Volume Seasonal Service | E11: 7 | H11: 1313149 | J11: 1313149
C12: Rate 16 | D12: Contracted Firm Service | E12: 3 | I12: 95824 | J12: 0

Sheet B1.3 Current Rev From Rates
C2: ='A1.1 Distributor Information'!C3 -> Name of LDC: EPCOR Natural Gas Limited Partnership
C3: ='A1.1 Distributor Information'!C4 -> OEB Application Number: EB-2022-0184 Exhibit A - 2023 Custom Incentive Application
C6: Forecasted Revenue from Current Rates
C8: Months / Year | D8: 12
E11: Fixed Monthly | G11: Delivery Charge | J11: Delivery Charge
C12: Rate Class | E12: Base | F12: =OneDollar -> Bill 32 Rate | G12: Tier 1 | H12: Tier 2 | I12: Tier 3 | J12: Contract Demand | K12: Gas Supply | L12: Upstream Recovery Charge | M12: Transportation & Storage Charge | N12: Federal Carbon Charge | O12: Total
M13: (A)
C14: Rate 1 | D14: General Firm Service | E14: ='B1.2 Billing Determinants'!E9*'B1.1 Current Distribution Rates'!E10*$D$8 -> 1540718.508 | F14: ='B1.1 Current Distribution Rates'!F10*'B1.2 Billing Determinants'!E9*$D$8 -> 58644 | G14: ='B1.2 Billing Determinants'!F9*'B1.1 Current Distribution Rates'!G10/100 -> 954756.6882 | H14: ='B1.2 Billing Determinants'!G9*'B1.1 Current Distribution Rates'!H10/100 -> 509849.2624 | I14: ='B1.2 Billing Determinants'!H9*'B1.1 Current Distribution Rates'!I10/100 -> 70500.78605 | J14: ='B1.2 Billing Determinants'!I9*'B1.1 Current Distribution Rates'!J10/100*$D$8 -> 0 | K14: ='B1.2 Billing Determinants'!J9*'B1.1 Current Distribution Rates'!K10/100 -> 1688818.791 | L14: ='B1.1 Current Distribution Rates'!L10*'B1.2 Billing Determinants'!$J9/100 -> 81111.1983 | M14: ='B1.1 Current Distribution Rates'!M10*'B1.2 Billing Determinants'!$J9/100 -> 148476.4147 | N14: ='B1.1 Current Distribution Rates'!Q10*'B1.2 Billing Determinants'!J9/100 -> 538723.6305 | O14: =SUM(E14:N14) -> 5591599.28
C15: Rate 6 | D15: Large Volume General Firm Service | E15: ='B1.2 Billing Determinants'!E10*'B1.1 Current Distribution Rates'!E11*$D$8 -> 45006.5133 | F15: ='B1.1 Current Distribution Rates'!F11*'B1.2 Billing Determinants'!E10*$D$8 -> 420 | G15: ='B1.2 Billing Determinants'!F10*'B1.1 Current Distribution Rates'!G11/100 -> 74760.22585 | H15: ='B1.2 Billing Determinants'!G10*'B1.1 Current Distribution Rates'!H11/100 -> 211117.204 | I15: ='B1.2 Billing Determinants'!H10*'B1.1 Current Distribution Rates'!I11/100 -> 197624.3726 | J15: ='B1.2 Billing Determinants'!I10*'B1.1 Current Distribution Rates'!J11/100*$D$8 -> 0 | K15: ='B1.2 Billing Determinants'!J10*'B1.1 Current Distribution Rates'!K11/100 -> 638764.6466 | L15: ='B1.1 Current Distribution Rates'!L11*'B1.2 Billing Determinants'!$J10/100 -> 60774.8652 | M15: ='B1.1 Current Distribution Rates'!M11*'B1.2 Billing Determinants'!$J10/100 -> 117414.1257 | N15: ='B1.1 Current Distribution Rates'!Q11*'B1.2 Billing Determinants'!J10/100 -> 203762.3049 | O15: =SUM(E15:N15) -> 1549644.258
C16: Rate 11 | D16: Large Volume Seasonal Service | E16: ='B1.2 Billing Determinants'!E11*'B1.1 Current Distribution Rates'!E12*$D$8 -> 18001.74928 | F16: ='B1.1 Current Distribution Rates'!F12*'B1.2 Billing Determinants'!E11*$D$8 -> 84 | G16: ='B1.2 Billing Determinants'!F11*'B1.1 Current Distribution Rates'!G12/100 -> 0 | H16: ='B1.2 Billing Determinants'!G11*'B1.1 Current Distribution Rates'!H12/100 -> 0 | I16: ='B1.2 Billing Determinants'!H11*'B1.1 Current Distribution Rates'!I12/100 -> 211815.0675 | J16: ='B1.2 Billing Determinants'!I11*'B1.1 Current Distribution Rates'!J12/100*$D$8 -> 0 | K16: ='B1.2 Billing Determinants'!J11*'B1.1 Current Distribution Rates'!K12/100 -> 403008.0544 | L16: ='B1.1 Current Distribution Rates'!L12*'B1.2 Billing Determinants'!$J11/100 -> 462.228448 | M16: ='B1.1 Current Distribution Rates'!M12*'B1.2 Billing Determinants'!$J11/100 -> 23854.66473 | N16: ='B1.1 Current Distribution Rates'!Q12*'B1.2 Billing Determinants'!J11/100 -> 128557.2871 | O16: =SUM(E16:N16) -> 785783.0514
C17: Rate 16 | D17: Contracted Firm Service | E17: ='B1.2 Billing Determinants'!E12*'B1.1 Current Distribution Rates'!E13*$D$8 -> 56728.2015 | F17: ='B1.1 Current Distribution Rates'!F13*'B1.2 Billing Determinants'!E12*$D$8 -> 36 | G17: ='B1.2 Billing Determinants'!F12*'B1.1 Current Distribution Rates'!G13/100 -> 0 | H17: ='B1.2 Billing Determinants'!G12*'B1.1 Current Distribution Rates'!H13/100 -> 0 | I17: ='B1.2 Billing Determinants'!H12*'B1.1 Current Distribution Rates'!I13/100 -> 0 | J17: ='B1.2 Billing Determinants'!I12*'B1.1 Current Distribution Rates'!J13/100*$D$8 -> 1235934.697 | K17: ='B1.2 Billing Determinants'!J12*'B1.1 Current Distribution Rates'!K13/100 -> 0 | L17: ='B1.1 Current Distribution Rates'!L13*'B1.2 Billing Determinants'!$I12*$D$8/100 -> 163783.1474 | M17: ='B1.1 Current Distribution Rates'!N13*'B1.2 Billing Determinants'!$I12/100*$D$8 -> 210428.3541 | N17: ='B1.1 Current Distribution Rates'!Q13*'B1.2 Billing Determinants'!I12/100*D8 -> 112574.0352 | O17: =SUM(E17:N17) -> 1779484.435
C18: Total Revenue | E18: =SUM(E14:E17) -> 1660454.972 | F18: 59184 | G18: 1029516.914 | H18: 720966.4664 | I18: 479940.2262 | J18: 1235934.697 | K18: 2730591.492 | L18: 306131.4393 | M18: 500173.5592 | N18: 983617.2577 | O18: 9706511.024
C19: (A) Transportation & Storage for Rates 1, 6, and 11. Transportation only for Rate 16.

Sheet C1.1 Current Rate Riders
C2: ='A1.1 Distributor Information'!C3 -> Name of LDC: EPCOR Natural Gas Limited Partnership
C3: ='A1.1 Distributor Information'!C4 -> OEB Application Number: EB-2022-0184 Exhibit A - 2023 Custom Incentive Application
C5: Current Rate Riders
C7: Description: | E7: Delay in Revenue Recovery Rate Rider
C8: Effective Until: | E8: Dec 31, 2028
C10: Rate 1 | General Firm Service | D10: cents / m3 volume | E10: 1.633 | F10: Cents/m3
C11: Rate 6 | Large Volume General Firm Service | D11: cents / m3 volume | E11: 0.909 | F11: Cents/m3
C12: Rate 11 | Large Volume Seasonal Service | D12: cents / m3 volume | E12: 0.5524 | F12: Cents/m3
C13: Rate 16 | Contracted Firm Service | D13: cents / contracted demand / month | E13: 0.0601 | F13: $/contracted demand m3
C16: Energy Content Variance Account (ECVA)
E17: ECVA Rate Rider
C19: Rate 1 | General Firm Service | E19: 0.1403 | F19: Cents/m3
C20: Rate 6 | Large Volume General Firm Service | E20: 0.1403 | F20: Cents/m3
C21: Rate 11 | Large Volume Seasonal Service | E21: 0.1403 | F21: Cents/m3
C22: Rate 16 | Contracted Firm Service | E22: 0 | F22: Cents/contracted demand m3
C25: Contribution in Aid of Construction Variance Account (CIACVA)
E26: CIACVA Rate Rider
C28: Rate 1 | General Firm Service | E28: 0.5434 | F28: Cents/m3
C29: Rate 6 | Large Volume General Firm Service | E29: 0.7135 | F29: Cents/m3
C30: Rate 11 | Large Volume Seasonal Service | E30: 0.0992 | F30: Cents/m3
C31: Rate 16 | Contracted Firm Service | E31: 0.9603 | F31: Cents/contracted demand m3
C34: External Funding Variance Account (EFVA)
E35: EFVA Rate Rider
C37: Rate 1 | General Firm Service | E37: 0.5197 | F37: Cents/m3
C38: Rate 6 | Large Volume General Firm Service | E38: 0.6608 | F38: Cents/m3
C39: Rate 11 | Large Volume Seasonal Service | E39: 0.1075 | F39: Cents/m3
C40: Rate 16 | Contracted Firm Service | E40: 0.7964 | F40: Cents/contracted demand m3

Sheet D1.1 Rate 1 Adjustment
C2: ='A1.1 Distributor Information'!C3 -> Name of LDC: EPCOR Natural Gas Limited Partnership
C3: ='A1.1 Distributor Information'!C4 -> OEB Application Number: EB-2022-0184 Exhibit A - 2023 Custom Incentive Application
C5: Rate 1 Incentive Rate Adjustment
C6: =MID(CELL("filename",A1),FIND("]",CELL("filename",A1))+1,255) -> D1.1 Rate 1 Adjustment
C8: Rate 1
C10: GDP-IPI
C11: Less Productivity
C12: Less Stretch Factor
C13: Incentive Rate Adjustment | E13: 0.0203
C14: Months / Year | E14: 12
D16: Unit | E16: Current Rate | F16: Price Cap | G16: Adjusted Rates | H16: Billing Determinants | I16: Revenue
C17: Monthly Base | D17: $/month | E17: ='B1.1 Current Distribution Rates'!E10 -> 26.272398 | F17: =$E$13 -> 0.0203 | G17: =E17*(1+F17) -> 26.80572768 | H17: =INDEX('B1.2 Billing Determinants'!$E$9:$J$12,MATCH($C$8,'B1.2 Billing Determinants'!$C$9:$C$12,0),MATCH(C17,'B1.2 Billing Determinants'!$E$8:$J$8,0)) -> 4887 | I17: =G17*H17*$E$14 -> 1571995.094
C18: =OneDollar -> Bill 32 Rate | D18: $/month | E18: ='B1.1 Current Distribution Rates'!F10 -> 1 | F18: 0 | G18: =E18*(1+F18) -> 1 | H18: =H17 -> 4887 | I18: =G18*H18*$E$14 -> 58644
C19: Tier 1 | D19: cents / m3 | E19: ='B1.1 Current Distribution Rates'!G10 -> 28.1485611 | F19: =$E$13 -> 0.0203 | G19: =E19*(1+F19) -> 28.71997689 | H19: =INDEX('B1.2 Billing Determinants'!$E$9:$J$12,MATCH($C$8,'B1.2 Billing Determinants'!$C$9:$C$12,0),MATCH(C19,'B1.2 Billing Determinants'!$E$8:$J$8,0)) -> 3391849 | I19: =G19*H19/100 -> 974138.249
C20: Tier 2 | D20: cents / m3 | E20: ='B1.1 Current Distribution Rates'!H10 -> 27.59406879 | F20: =$E$13 -> 0.0203 | G20: 28.15422839 | H20: =INDEX('B1.2 Billing Determinants'!$E$9:$J$12,MATCH($C$8,'B1.2 Billing Determinants'!$C$9:$C$12,0),MATCH(C20,'B1.2 Billing Determinants'!$E$8:$J$8,0)) -> 1847677 | I20: =G20*H20/100 -> 520199.2024
C21: Tier 3 | D21: cents / m3 | E21: ='B1.1 Current Distribution Rates'!I10 -> 26.77899261 | F21: =$E$13 -> 0.0203 | G21: 27.32260616 | H21: =INDEX('B1.2 Billing Determinants'!$E$9:$J$12,MATCH($C$8,'B1.2 Billing Determinants'!$C$9:$C$12,0),MATCH(C21,'B1.2 Billing Determinants'!$E$8:$J$8,0)) -> 263269 | I21: 71931.95201
C22: Contract Demand | D22: cents / m3 | E22: ='B1.1 Current Distribution Rates'!J10 -> 0 | F22: =$E$13 -> 0.0203 | G22: 0 | H22: =INDEX('B1.2 Billing Determinants'!$E$9:$J$12,MATCH($C$8,'B1.2 Billing Determinants'!$C$9:$C$12,0),MATCH(C22,'B1.2 Billing Determinants'!$E$8:$J$8,0)) -> 0 | I22: =G22*H22/100*$E$14 -> 0
C23: Gas Supply | D23: cents / m3 | E23: ='B1.1 Current Distribution Rates'!K10 -> 30.6902 | F23: 0 | G23: 30.6902 | H23: =INDEX('B1.2 Billing Determinants'!$E$9:$J$12,MATCH($C$8,'B1.2 Billing Determinants'!$C$9:$C$12,0),MATCH(C23,'B1.2 Billing Determinants'!$E$8:$J$8,0)) -> 5502795 | I23: 1688818.791
C24: Upstream Recovery Charge | D24: cents / m3 | E24: ='B1.1 Current Distribution Rates'!L10 -> 1.474 | F24: 0 | G24: 1.474 | H24: =H23 -> 5502795 | I24: 81111.1983
C25: Transportation & Storage Charge | D25: cents / m3 | E25: ='B1.1 Current Distribution Rates'!M10 -> 2.6982 | F25: 0 | G25: 2.6982 | H25: =H24 -> 5502795 | I25: 148476.4147
C26: Federal Carbon Charge | D26: cents / m3 | E26: ='B1.1 Current Distribution Rates'!Q10 -> 9.79 | F26: 0 | G26: 9.79 | H26: =H25 -> 5502795 | I26: =G26*H26/100 -> 538723.6305
I27: =SUM(I17:I26) -> 5654038.532

Sheet D1.2 Rate 6 Adjustment
C2: ='A1.1 Distributor Information'!C3 -> Name of LDC: EPCOR Natural Gas Limited Partnership
C3: ='A1.1 Distributor Information'!C4 -> OEB Application Number: EB-2022-0184 Exhibit A - 2023 Custom Incentive Application
C5: Rate 6 Incentive Rate Adjustment
C6: =MID(CELL("filename",A1),FIND("]",CELL("filename",A1))+1,255) -> D1.2 Rate 6 Adjustment
C8: Rate 6
C10: GDP-IPI
C11: Less Productivity
C12: Less Stretch Factor
C13: Incentive Rate Adjustment | E13: ='D1.1 Rate 1 Adjustment'!E13 -> 0.0203
C14: Months / Year | E14: 12
D16: Unit | E16: Current Rate | F16: Price Cap | G16: Adjusted Rates | H16: Billing Determinants | I16: Revenue
C17: Monthly Base | D17: $/month | E17: ='B1.1 Current Distribution Rates'!E11 -> 107.158365 | F17: =$E$13 -> 0.0203 | G17: =E17*(1+F17) -> 109.3336798 | H17: =INDEX('B1.2 Billing Determinants'!$E$9:$J$12,MATCH($C$8,'B1.2 Billing Determinants'!$C$9:$C$12,0),MATCH(C17,'B1.2 Billing Determinants'!$E$8:$J$8,0)) -> 35 | I17: =G17*H17*12 -> 45920.14552
C18: =OneDollar -> Bill 32 Rate | D18: $/month | E18: ='B1.1 Current Distribution Rates'!F11 -> 1 | F18: 0 | G18: =E18*(1+F18) -> 1 | H18: =H17 -> 35 | I18: =G18*H18*12 -> 420
C19: Tier 1 | D19: cents / m3 | E19: ='B1.1 Current Distribution Rates'!G11 -> 25.96778901 | F19: =$E$13 -> 0.0203 | G19: =E19*(1+F19) -> 26.49493513 | H19: =INDEX('B1.2 Billing Determinants'!$E$9:$J$12,MATCH($C$8,'B1.2 Billing Determinants'!$C$9:$C$12,0),MATCH(C19,'B1.2 Billing Determinants'!$E$8:$J$8,0)) -> 287896 | I19: =G19*H19/100 -> 76277.85843
C20: Tier 2 | D20: cents / m3 | E20: ='B1.1 Current Distribution Rates'!H11 -> 23.3710203 | F20: =$E$13 -> 0.0203 | G20: 23.84545201 | H20: =INDEX('B1.2 Billing Determinants'!$E$9:$J$12,MATCH($C$8,'B1.2 Billing Determinants'!$C$9:$C$12,0),MATCH(C20,'B1.2 Billing Determinants'!$E$8:$J$8,0)) -> 903329 | I20: =G20*H20/100 -> 215402.8832
C21: Tier 3 | D21: cents / m3 | E21: ='B1.1 Current Distribution Rates'!I11 -> 22.20231642 | F21: =$E$13 -> 0.0203 | G21: 22.65302344 | H21: =INDEX('B1.2 Billing Determinants'!$E$9:$J$12,MATCH($C$8,'B1.2 Billing Determinants'!$C$9:$C$12,0),MATCH(C21,'B1.2 Billing Determinants'!$E$8:$J$8,0)) -> 890107 | I21: 201636.1474
C22: Contract Demand | D22: cents / m3 | E22: ='B1.1 Current Distribution Rates'!J11 -> 0 | F22: =$E$13 -> 0.0203 | G22: 0 | H22: =INDEX('B1.2 Billing Determinants'!$E$9:$J$12,MATCH($C$8,'B1.2 Billing Determinants'!$C$9:$C$12,0),MATCH(C22,'B1.2 Billing Determinants'!$E$8:$J$8,0)) -> 0 | I22: =G22*H22/100*12 -> 0
C23: Gas Supply | D23: cents / m3 | E23: ='B1.1 Current Distribution Rates'!K11 -> 30.6902 | F23: 0 | G23: 30.6902 | H23: =INDEX('B1.2 Billing Determinants'!$E$9:$J$12,MATCH($C$8,'B1.2 Billing Determinants'!$C$9:$C$12,0),MATCH(C23,'B1.2 Billing Determinants'!$E$8:$J$8,0)) -> 2081331 | I23: 638764.6466
C24: Upstream Recovery Charge | D24: cents / m3 | E24: =INDEX('B1.1 Current Distribution Rates'!$E$10:$Q$13,MATCH($C$8,'B1.1 Current Distribution Rates'!$C$10:$C$13,0),MATCH(C24,'B1.1 Current Distribution Rates'!$E$8:$Q$8,0)) -> 2.92 | F24: 0 | G24: 2.92 | H24: =H23 -> 2081331 | I24: 60774.8652
C25: Transportation & Storage Charge | D25: cents / m3 | E25: =INDEX('B1.1 Current Distribution Rates'!$E$10:$Q$13,MATCH($C$8,'B1.1 Current Distribution Rates'!$C$10:$C$13,0),MATCH(C25,'B1.1 Current Distribution Rates'!$E$8:$Q$8,0)) -> 5.6413 | F25: ='D1.1 Rate 1 Adjustment'!$F$25 -> 0 | G25: 5.6413 | H25: =H24 -> 2081331 | I25: 117414.1257
C26: Federal Carbon Charge | D26: cents / m3 | E26: =INDEX('B1.1 Current Distribution Rates'!$E$10:$Q$13,MATCH($C$8,'B1.1 Current Distribution Rates'!$C$10:$C$13,0),MATCH(C26,'B1.1 Current Distribution Rates'!$E$8:$Q$8,0)) -> 9.79 | F26: 0 | G26: 9.79 | H26: =H25 -> 2081331 | I26: 203762.3049
I27: =SUM(I17:I26) -> 1560372.977

Sheet D1.3 Rate 11 Adjustment
C2: ='A1.1 Distributor Information'!C3 -> Name of LDC: EPCOR Natural Gas Limited Partnership
C3: ='A1.1 Distributor Information'!C4 -> OEB Application Number: EB-2022-0184 Exhibit A - 2023 Custom Incentive Application
C5: Rate 11 Incentive Rate Adjustment
C6: =MID(CELL("filename",A1),FIND("]",CELL("filename",A1))+1,255) -> D1.3 Rate 11 Adjustment
C8: Rate 11
C10: GDP-IPI
C11: Less Productivity
C12: Less Stretch Factor
C13: Incentive Rate Adjustment | E13: ='D1.1 Rate 1 Adjustment'!E13 -> 0.0203
C14: Months / Year | E14: 12
D16: Unit | E16: Current Rate | F16: Price Cap | G16: Adjusted Rates | H16: Billing Determinants | I16: Revenue
C17: Monthly Base | D17: $/month | E17: =INDEX('B1.1 Current Distribution Rates'!$E$10:$Q$13,MATCH($C$8,'B1.1 Current Distribution Rates'!$C$10:$C$13,0),MATCH(C17,'B1.1 Current Distribution Rates'!$E$8:$Q$8,0)) -> 214.306539 | F17: =$E$13 -> 0.0203 | G17: =E17*(1+F17) -> 218.6569617 | H17: =INDEX('B1.2 Billing Determinants'!$E$9:$J$12,MATCH($C$8,'B1.2 Billing Determinants'!$C$9:$C$12,0),MATCH(C17,'B1.2 Billing Determinants'!$E$8:$J$8,0)) -> 7 | I17: =G17*H17*12 -> 18367.18479
C18: =OneDollar -> Bill 32 Rate | D18: $/month | E18: =INDEX('B1.1 Current Distribution Rates'!$E$10:$Q$13,MATCH($C$8,'B1.1 Current Distribution Rates'!$C$10:$C$13,0),MATCH(C18,'B1.1 Current Distribution Rates'!$E$8:$Q$8,0)) -> 1 | F18: 0 | G18: =E18*(1+F18) -> 1 | H18: =H17 -> 7 | I18: =G18*H18*12 -> 84
C19: Tier 1 | D19: cents / m3 | E19: =INDEX('B1.1 Current Distribution Rates'!$E$10:$Q$13,MATCH($C$8,'B1.1 Current Distribution Rates'!$C$10:$C$13,0),MATCH(C19,'B1.1 Current Distribution Rates'!$E$8:$Q$8,0)) -> 16.1303148 | F19: =$E$13 -> 0.0203 | G19: 16.45776019 | H19: =INDEX('B1.2 Billing Determinants'!$E$9:$J$12,MATCH($C$8,'B1.2 Billing Determinants'!$C$9:$C$12,0),MATCH(C19,'B1.2 Billing Determinants'!$E$8:$J$8,0)) -> 0 | I19: =G19*H19/100 -> 0
C20: Tier 2 | D20: cents / m3 | E20: =INDEX('B1.1 Current Distribution Rates'!$E$10:$Q$13,MATCH($C$8,'B1.1 Current Distribution Rates'!$C$10:$C$13,0),MATCH(C20,'B1.1 Current Distribution Rates'!$E$8:$Q$8,0)) -> 16.1303148 | F20: =$E$13 -> 0.0203 | G20: 16.45776019 | H20: =INDEX('B1.2 Billing Determinants'!$E$9:$J$12,MATCH($C$8,'B1.2 Billing Determinants'!$C$9:$C$12,0),MATCH(C20,'B1.2 Billing Determinants'!$E$8:$J$8,0)) -> 0 | I20: =G20*H20/100 -> 0
C21: Tier 3 | D21: cents / m3 | E21: =INDEX('B1.1 Current Distribution Rates'!$E$10:$Q$13,MATCH($C$8,'B1.1 Current Distribution Rates'!$C$10:$C$13,0),MATCH(C21,'B1.1 Current Distribution Rates'!$E$8:$Q$8,0)) -> 16.1303148 | F21: =$E$13 -> 0.0203 | G21: 16.45776019 | H21: =INDEX('B1.2 Billing Determinants'!$E$9:$J$12,MATCH($C$8,'B1.2 Billing Determinants'!$C$9:$C$12,0),MATCH(C21,'B1.2 Billing Determinants'!$E$8:$J$8,0)) -> 1313149 | I21: 216114.9134
C22: Contract Demand | D22: cents / m3 | E22: =INDEX('B1.1 Current Distribution Rates'!$E$10:$Q$13,MATCH($C$8,'B1.1 Current Distribution Rates'!$C$10:$C$13,0),MATCH(C22,'B1.1 Current Distribution Rates'!$E$8:$Q$8,0)) -> 0 | F22: =$E$13 -> 0.0203 | G22: 0 | H22: =INDEX('B1.2 Billing Determinants'!$E$9:$J$12,MATCH($C$8,'B1.2 Billing Determinants'!$C$9:$C$12,0),MATCH(C22,'B1.2 Billing Determinants'!$E$8:$J$8,0)) -> 0 | I22: =G22*H22/100*12 -> 0
C23: Gas Supply | D23: cents / m3 | E23: =INDEX('B1.1 Current Distribution Rates'!$E$10:$Q$13,MATCH($C$8,'B1.1 Current Distribution Rates'!$C$10:$C$13,0),MATCH(C23,'B1.1 Current Distribution Rates'!$E$8:$Q$8,0)) -> 30.6902 | F23: 0 | G23: 30.6902 | H23: =INDEX('B1.2 Billing Determinants'!$E$9:$J$12,MATCH($C$8,'B1.2 Billing Determinants'!$C$9:$C$12,0),MATCH(C23,'B1.2 Billing Determinants'!$E$8:$J$8,0)) -> 1313149 | I23: 403008.0544
C24: Upstream Recovery Charge | D24: cents / m3 | E24: =INDEX('B1.1 Current Distribution Rates'!$E$10:$Q$13,MATCH($C$8,'B1.1 Current Distribution Rates'!$C$10:$C$13,0),MATCH(C24,'B1.1 Current Distribution Rates'!$E$8:$Q$8,0)) -> 0.0352 | F24: 0 | G24: 0.0352 | H24: =H23 -> 1313149 | I24: 462.228448
C25: Transportation & Storage Charge | D25: cents / m3 | E25: =INDEX('B1.1 Current Distribution Rates'!$E$10:$Q$13,MATCH($C$8,'B1.1 Current Distribution Rates'!$C$10:$C$13,0),MATCH(C25,'B1.1 Current Distribution Rates'!$E$8:$Q$8,0)) -> 1.8166 | F25: ='D1.1 Rate 1 Adjustment'!$F$25 -> 0 | G25: 1.8166 | H25: =H24 -> 1313149 | I25: 23854.66473
C26: Federal Carbon Charge | D26: cents / m3 | E26: =INDEX('B1.1 Current Distribution Rates'!$E$10:$Q$13,MATCH($C$8,'B1.1 Current Distribution Rates'!$C$10:$C$13,0),MATCH(C26,'B1.1 Current Distribution Rates'!$E$8:$Q$8,0)) -> 9.79 | F26: 0 | G26: 9.79 | H26: =H25 -> 1313149 | I26: 128557.2871
I27: =SUM(I17:I26) -> 790448.3328

Sheet D1.4 Rate 16 Adjustment
C2: ='A1.1 Distributor Information'!C3 -> Name of LDC: EPCOR Natural Gas Limited Partnership
C3: ='A1.1 Distributor Information'!C4 -> OEB Application Number: EB-2022-0184 Exhibit A - 2023 Custom Incentive Application
C5: Rate 16 Incentive Rate Adjustment
C6: =MID(CELL("filename",A1),FIND("]",CELL("filename",A1))+1,255) -> D1.4 Rate 16 Adjustment
C8: Rate 16
C10: GDP-IPI
C11: Less Productivity
C12: Less Stretch Factor
C13: Incentive Rate Adjustment | E13: ='D1.1 Rate 1 Adjustment'!E13 -> 0.0203
C14: Months / Year | E14: 12
D16: Unit | E16: Current Rate | F16: Price Cap | G16: Adjusted Rates | H16: Billing Determinants | I16: Revenue
C17: Monthly Base | D17: $/month | E17: =INDEX('B1.1 Current Distribution Rates'!$E$10:$Q$13,MATCH($C$8,'B1.1 Current Distribution Rates'!$C$10:$C$13,0),MATCH(C17,'B1.1 Current Distribution Rates'!$E$8:$Q$8,0)) -> 1575.783375 | F17: =$E$13 -> 0.0203 | G17: =E17*(1+F17) -> 1607.771778 | H17: =INDEX('B1.2 Billing Determinants'!$E$9:$J$12,MATCH($C$8,'B1.2 Billing Determinants'!$C$9:$C$12,0),MATCH(C17,'B1.2 Billing Determinants'!$E$8:$J$8,0)) -> 3 | I17: =G17*H17*$E$14 -> 57879.78399
C18: =OneDollar -> Bill 32 Rate | D18: $/month | E18: =INDEX('B1.1 Current Distribution Rates'!$E$10:$Q$13,MATCH($C$8,'B1.1 Current Distribution Rates'!$C$10:$C$13,0),MATCH(C18,'B1.1 Current Distribution Rates'!$E$8:$Q$8,0)) -> 1 | F18: 0 | G18: =E18*(1+F18) -> 1 | H18: =H17 -> 3 | I18: =G18*H18*$E$14 -> 36
C19: Tier 1 | D19: cents / m3 | E19: =INDEX('B1.1 Current Distribution Rates'!$E$10:$Q$13,MATCH($C$8,'B1.1 Current Distribution Rates'!$C$10:$C$13,0),MATCH(C19,'B1.1 Current Distribution Rates'!$E$8:$Q$8,0)) -> 0 | F19: 0.0203 | G19: 0 | H19: =INDEX('B1.2 Billing Determinants'!$E$9:$J$12,MATCH($C$8,'B1.2 Billing Determinants'!$C$9:$C$12,0),MATCH(C19,'B1.2 Billing Determinants'!$E$8:$J$8,0)) -> 0 | I19: =G19*H19/100 -> 0
C20: Tier 2 | D20: cents / m3 | E20: =INDEX('B1.1 Current Distribution Rates'!$E$10:$Q$13,MATCH($C$8,'B1.1 Current Distribution Rates'!$C$10:$C$13,0),MATCH(C20,'B1.1 Current Distribution Rates'!$E$8:$Q$8,0)) -> 0 | F20: 0.0203 | G20: 0 | H20: =INDEX('B1.2 Billing Determinants'!$E$9:$J$12,MATCH($C$8,'B1.2 Billing Determinants'!$C$9:$C$12,0),MATCH(C20,'B1.2 Billing Determinants'!$E$8:$J$8,0)) -> 0 | I20: =G20*H20/100 -> 0
C21: Tier 3 | D21: cents / m3 | E21: =INDEX('B1.1 Current Distribution Rates'!$E$10:$Q$13,MATCH($C$8,'B1.1 Current Distribution Rates'!$C$10:$C$13,0),MATCH(C21,'B1.1 Current Distribution Rates'!$E$8:$Q$8,0)) -> 0 | F21: 0.0203 | G21: 0 | H21: =INDEX('B1.2 Billing Determinants'!$E$9:$J$12,MATCH($C$8,'B1.2 Billing Determinants'!$C$9:$C$12,0),MATCH(C21,'B1.2 Billing Determinants'!$E$8:$J$8,0)) -> 0 | I21: =G21*H21/100 -> 0
C22: Contract Demand | D22: Cents/contracted demand m3 | E22: =INDEX('B1.1 Current Distribution Rates'!$E$10:$Q$13,MATCH($C$8,'B1.1 Current Distribution Rates'!$C$10:$C$13,0),MATCH(C22,'B1.1 Current Distribution Rates'!$E$8:$Q$8,0)) -> 107.4830503 | F22: 0.0203 | G22: 109.6649562 | H22: =INDEX('B1.2 Billing Determinants'!$E$9:$J$12,MATCH($C$8,'B1.2 Billing Determinants'!$C$9:$C$12,0),MATCH(C22,'B1.2 Billing Determinants'!$E$8:$J$8,0)) -> 95824 | I22: =G22*H22/100*$E$14 -> 1261024.171
C23: Gas Supply | D23: cents / m3 | E23: =INDEX('B1.1 Current Distribution Rates'!$E$10:$Q$13,MATCH($C$8,'B1.1 Current Distribution Rates'!$C$10:$C$13,0),MATCH(C23,'B1.1 Current Distribution Rates'!$E$8:$Q$8,0)) -> 0 | F23: 0 | G23: 0 | H23: =INDEX('B1.2 Billing Determinants'!$E$9:$J$12,MATCH($C$8,'B1.2 Billing Determinants'!$C$9:$C$12,0),MATCH(C23,'B1.2 Billing Determinants'!$E$8:$J$8,0)) -> 0 | I23: =G23*H23/100 -> 0
C24: Upstream Recovery Charge | D24: Cents/contracted demand m3 | E24: =INDEX('B1.1 Current Distribution Rates'!$E$10:$Q$13,MATCH($C$8,'B1.1 Current Distribution Rates'!$C$10:$C$13,0),MATCH(C24,'B1.1 Current Distribution Rates'!$E$8:$Q$8,0)) -> 14.2434 | F24: 0 | G24: 14.2434 | H24: =H22 -> 95824 | I24: =G24*H24/100*$E$14 -> 163783.1474
C25: Transportation Charge From Dawn | D25: Cents/contracted demand m3 | E25: =INDEX('B1.1 Current Distribution Rates'!$E$10:$Q$13,MATCH($C$8,'B1.1 Current Distribution Rates'!$C$10:$C$13,0),MATCH(C25,'B1.1 Current Distribution Rates'!$E$8:$Q$8,0)) -> 18.2999 | F25: ='D1.1 Rate 1 Adjustment'!$F$25 -> 0 | G25: 18.2999 | H25: =H24 -> 95824 | I25: =G25*H25/100*$E$14 -> 210428.3541
C26: Transportation Charge From Kirkwall | D26: Cents/contracted demand m3 | E26: =INDEX('B1.1 Current Distribution Rates'!$E$10:$Q$13,MATCH($C$8,'B1.1 Current Distribution Rates'!$C$10:$C$13,0),MATCH(C26,'B1.1 Current Distribution Rates'!$E$8:$Q$8,0)) -> 11.848 | F26: ='D1.1 Rate 1 Adjustment'!$F$25 -> 0 | G26: 11.848 | H26: 0 | I26: =G26*H26/100*$E$14 -> 0
C27: Transportation Charge From Parkway | D27: Cents/contracted demand m3 | E27: =INDEX('B1.1 Current Distribution Rates'!$E$10:$Q$13,MATCH($C$8,'B1.1 Current Distribution Rates'!$C$10:$C$13,0),MATCH(C27,'B1.1 Current Distribution Rates'!$E$8:$Q$8,0)) -> 11.848 | F27: ='D1.1 Rate 1 Adjustment'!$F$25 -> 0 | G27: 11.848 | H27: 0 | I27: =G27*H27/100*$E$14 -> 0
C28: Federal Carbon Charge | D28: Cents/contracted demand m3 | E28: =INDEX('B1.1 Current Distribution Rates'!$E$10:$Q$13,MATCH($C$8,'B1.1 Current Distribution Rates'!$C$10:$C$13,0),MATCH(C28,'B1.1 Current Distribution Rates'!$E$8:$Q$8,0)) -> 9.79 | F28: 0 | G28: 9.79 | H28: =H25 -> 95824 | I28: =G28*H28/100*$E$14 -> 112574.0352
I29: =SUM(I17:I28) -> 1805725.492

Sheet E1.1 Proposed Dist Rates
C2: ='A1.1 Distributor Information'!C3 -> Name of LDC: EPCOR Natural Gas Limited Partnership
C3: ='A1.1 Distributor Information'!C4 -> OEB Application Number: EB-2022-0184 Exhibit A - 2023 Custom Incentive Application
C5: Proposed Distribution Tariff Sheet Rates
C6: =MID(CELL("filename",A1),FIND("]",CELL("filename",A1))+1,255) -> E1.1 Proposed Dist Rates
C8: Rate Class | E8: Monthly Base | F8: =OneDollar -> Bill 32 Rate | G8: Tier 1 | H8: Tier 2 | I8: Tier 3 | J8: Contract Demand | K8: Gas Supply | L8: Upstream Recovery Charge | M8: Transportation & Storage Charge | N8: Transportation Charge From Dawn | O8: Transportation Charge From Kirkwall | P8: Transportation Charge From Parkway | Q8: Federal Carbon Charge
E9: $/month | F9: $/month | G9: ₵ / m3 | H9: ₵ / m3 | I9: ₵ / m3 | J9: ₵/contracted m3 | K9: ₵/m3 | L9: (A) | M9: ₵ / m3 | N9: ₵ /contracted m3 | O9: ₵ /contracted m3 | P9: ₵ /contracted m3 | Q9: ₵ / m3
C10: Rate 1 | D10: General Firm Service | E10: =INDEX('D1.1 Rate 1 Adjustment'!$G$17:$G$26,MATCH(E$8,'D1.1 Rate 1 Adjustment'!$C$17:$C$26,0)) -> 26.80572768 | F10: =INDEX('D1.1 Rate 1 Adjustment'!$G$17:$G$26,MATCH(F$8,'D1.1 Rate 1 Adjustment'!$C$17:$C$26,0)) -> 1 | G10: =INDEX('D1.1 Rate 1 Adjustment'!$G$17:$G$26,MATCH(G$8,'D1.1 Rate 1 Adjustment'!$C$17:$C$26,0)) -> 28.71997689 | H10: =INDEX('D1.1 Rate 1 Adjustment'!$G$17:$G$26,MATCH(H$8,'D1.1 Rate 1 Adjustment'!$C$17:$C$26,0)) -> 28.15422839 | I10: =INDEX('D1.1 Rate 1 Adjustment'!$G$17:$G$26,MATCH(I$8,'D1.1 Rate 1 Adjustment'!$C$17:$C$26,0)) -> 27.32260616 | K10: =INDEX('D1.1 Rate 1 Adjustment'!$G$17:$G$26,MATCH(K$8,'D1.1 Rate 1 Adjustment'!$C$17:$C$26,0)) -> 30.6902 | L10: =INDEX('D1.1 Rate 1 Adjustment'!$G$17:$G$26,MATCH(L$8,'D1.1 Rate 1 Adjustment'!$C$17:$C$26,0)) -> 1.474 | M10: =INDEX('D1.1 Rate 1 Adjustment'!$G$17:$G$26,MATCH(M$8,'D1.1 Rate 1 Adjustment'!$C$17:$C$26,0)) -> 2.6982 | Q10: =INDEX('D1.1 Rate 1 Adjustment'!$G$17:$G$26,MATCH(Q$8,'D1.1 Rate 1 Adjustment'!$C$17:$C$26,0)) -> 9.79
C11: Rate 6 | D11: Large Volume General Firm Service | E11: =INDEX('D1.2 Rate 6 Adjustment'!$G$17:$G$26,MATCH(E8,'D1.2 Rate 6 Adjustment'!$C$17:$C$26,0)) -> 109.3336798 | F11: =INDEX('D1.2 Rate 6 Adjustment'!$G$17:$G$26,MATCH(F8,'D1.2 Rate 6 Adjustment'!$C$17:$C$26,0)) -> 1 | G11: =INDEX('D1.2 Rate 6 Adjustment'!$G$17:$G$26,MATCH(G8,'D1.2 Rate 6 Adjustment'!$C$17:$C$26,0)) -> 26.49493513 | H11: =INDEX('D1.2 Rate 6 Adjustment'!$G$17:$G$26,MATCH(H8,'D1.2 Rate 6 Adjustment'!$C$17:$C$26,0)) -> 23.84545201 | I11: =INDEX('D1.2 Rate 6 Adjustment'!$G$17:$G$26,MATCH(I8,'D1.2 Rate 6 Adjustment'!$C$17:$C$26,0)) -> 22.65302344 | K11: =INDEX('D1.2 Rate 6 Adjustment'!$G$17:$G$26,MATCH(K8,'D1.2 Rate 6 Adjustment'!$C$17:$C$26,0)) -> 30.6902 | L11: =INDEX('D1.2 Rate 6 Adjustment'!$G$17:$G$26,MATCH(L8,'D1.2 Rate 6 Adjustment'!$C$17:$C$26,0)) -> 2.92 | M11: =INDEX('D1.2 Rate 6 Adjustment'!$G$17:$G$26,MATCH(M8,'D1.2 Rate 6 Adjustment'!$C$17:$C$26,0)) -> 5.6413 | Q11: =INDEX('D1.2 Rate 6 Adjustment'!$G$17:$G$26,MATCH(Q8,'D1.2 Rate 6 Adjustment'!$C$17:$C$26,0)) -> 9.79
C12: Rate 11 | D12: Large Volume Seasonal Service | E12: =INDEX('D1.3 Rate 11 Adjustment'!$G$17:$G$26,MATCH(E8,'D1.3 Rate 11 Adjustment'!$C$17:$C$26,0)) -> 218.6569617 | F12: =INDEX('D1.3 Rate 11 Adjustment'!$G$17:$G$26,MATCH(F8,'D1.3 Rate 11 Adjustment'!$C$17:$C$26,0)) -> 1 | G12: =INDEX('D1.3 Rate 11 Adjustment'!$G$17:$G$26,MATCH(G8,'D1.3 Rate 11 Adjustment'!$C$17:$C$26,0)) -> 16.45776019 | H12: =INDEX('D1.3 Rate 11 Adjustment'!$G$17:$G$26,MATCH(H8,'D1.3 Rate 11 Adjustment'!$C$17:$C$26,0)) -> 16.45776019 | I12: =INDEX('D1.3 Rate 11 Adjustment'!$G$17:$G$26,MATCH(I8,'D1.3 Rate 11 Adjustment'!$C$17:$C$26,0)) -> 16.45776019 | K12: =INDEX('D1.3 Rate 11 Adjustment'!$G$17:$G$26,MATCH(K8,'D1.3 Rate 11 Adjustment'!$C$17:$C$26,0)) -> 30.6902 | L12: =INDEX('D1.3 Rate 11 Adjustment'!$G$17:$G$26,MATCH(L8,'D1.3 Rate 11 Adjustment'!$C$17:$C$26,0)) -> 0.0352 | M12: =INDEX('D1.3 Rate 11 Adjustment'!$G$17:$G$26,MATCH(M8,'D1.3 Rate 11 Adjustment'!$C$17:$C$26,0)) -> 1.8166 | Q12: =INDEX('D1.3 Rate 11 Adjustment'!$G$17:$G$26,MATCH(Q8,'D1.3 Rate 11 Adjustment'!$C$17:$C$26,0)) -> 9.79
C13: Rate 16 | D13: Contracted Firm Service | E13: =INDEX('D1.4 Rate 16 Adjustment'!$G$17:$G$28,MATCH(E8,'D1.4 Rate 16 Adjustment'!$C$17:$C$28,0)) -> 1607.771778 | F13: =INDEX('D1.4 Rate 16 Adjustment'!$G$17:$G$28,MATCH(F8,'D1.4 Rate 16 Adjustment'!$C$17:$C$28,0)) -> 1 | J13: =INDEX('D1.4 Rate 16 Adjustment'!$G$17:$G$28,MATCH(J8,'D1.4 Rate 16 Adjustment'!$C$17:$C$28,0)) -> 109.6649562 | L13: =INDEX('D1.4 Rate 16 Adjustment'!$G$17:$G$28,MATCH(L8,'D1.4 Rate 16 Adjustment'!$C$17:$C$28,0)) -> 14.2434 | N13: ='D1.4 Rate 16 Adjustment'!G25 -> 18.2999 | O13: =INDEX('D1.4 Rate 16 Adjustment'!$G$17:$G$28,MATCH(O8,'D1.4 Rate 16 Adjustment'!$C$17:$C$28,0)) -> 11.848 | P13: =INDEX('D1.4 Rate 16 Adjustment'!$G$17:$G$28,MATCH(P8,'D1.4 Rate 16 Adjustment'!$C$17:$C$28,0)) -> 11.848 | Q13: =INDEX('D1.4 Rate 16 Adjustment'!$G$17:$G$28,MATCH(Q8,'D1.4 Rate 16 Adjustment'!$C$17:$C$28,0)) -> 9.79
C14: (A) Rates 1, 6, and 11 all charged on cents / m3 basis. Rate 16 billed on cents / m3 of contracted demand basis

Sheet E1.2 Billing Determinants
C2: ='A1.1 Distributor Information'!C3 -> Name of LDC: EPCOR Natural Gas Limited Partnership
C3: ='A1.1 Distributor Information'!C4 -> OEB Application Number: EB-2022-0184 Exhibit A - 2023 Custom Incentive Application
C5: Billing Determinants
C6: =MID(CELL("filename",A1),FIND("]",CELL("filename",A1))+1,255) -> E1.2 Billing Determinants
C9: Rate Class | D9: Description | E9: Base | F9: Tier 1 | G9: Tier 2 | H9: Tier 3 | I9: Firm Demand | J9: Gas Supply
E10: cx's | F10: m3 | G10: m3 | H10: m3 | I10: Contracted m3 | J10: m3
C11: Rate 1 | D11: General Firm Service | E11: ='B1.2 Billing Determinants'!E9 -> 4887 | F11: ='B1.2 Billing Determinants'!F9 -> 3391849 | G11: ='B1.2 Billing Determinants'!G9 -> 1847677 | H11: ='B1.2 Billing Determinants'!H9 -> 263269 | I11: ='B1.2 Billing Determinants'!I9 -> 0 | J11: ='B1.2 Billing Determinants'!J9 -> 5502795
C12: Rate 6 | D12: Large Volume General Firm Service | E12: ='B1.2 Billing Determinants'!E10 -> 35 | F12: ='B1.2 Billing Determinants'!F10 -> 287896 | G12: ='B1.2 Billing Determinants'!G10 -> 903329 | H12: ='B1.2 Billing Determinants'!H10 -> 890107 | I12: ='B1.2 Billing Determinants'!I10 -> 0 | J12: ='B1.2 Billing Determinants'!J10 -> 2081331
C13: Rate 11 | D13: Large Volume Seasonal Service | E13: ='B1.2 Billing Determinants'!E11 -> 7 | F13: ='B1.2 Billing Determinants'!F11 -> 0 | G13: ='B1.2 Billing Determinants'!G11 -> 0 | H13: ='B1.2 Billing Determinants'!H11 -> 1313149 | I13: ='B1.2 Billing Determinants'!I11 -> 0 | J13: ='B1.2 Billing Determinants'!J11 -> 1313149
C14: Rate 16 | D14: Contracted Firm Service | E14: ='B1.2 Billing Determinants'!E12 -> 3 | F14: ='B1.2 Billing Determinants'!F12 -> 0 | G14: ='B1.2 Billing Determinants'!G12 -> 0 | H14: ='B1.2 Billing Determinants'!H12 -> 0 | I14: ='B1.2 Billing Determinants'!I12 -> 95824 | J14: ='B1.2 Billing Determinants'!J12 -> 0

Sheet E1.3 Proposed Rev From Rate
C2: ='A1.1 Distributor Information'!C3 -> Name of LDC: EPCOR Natural Gas Limited Partnership
C3: ='A1.1 Distributor Information'!C4 -> OEB Application Number: EB-2022-0184 Exhibit A - 2023 Custom Incentive Application
C5: Proposed Revenue from Rates
C7: Months / Year | D7: 12
C9: Rate Class | E9: Monthly Base | F9: =OneDollar -> Bill 32 Rate | G9: Tier 1 | H9: Tier 2 | I9: Tier 3 | J9: Contracted Demand | K9: Gas Supply | L9: Upstream Recovery Charge | M9: Transportation & Storage Charge | N9: Federal Carbon Charge | O9: Total
M10: (A)
C11: Rate 1 | D11: General Firm Service | E11: ='E1.1 Proposed Dist Rates '!E10*'E1.2 Billing Determinants'!E11*$D$7 -> 1571995.094 | F11: ='E1.1 Proposed Dist Rates '!F10*'E1.2 Billing Determinants'!E11*$D$7 -> 58644 | G11: ='E1.1 Proposed Dist Rates '!G10*'E1.2 Billing Determinants'!F11/100 -> 974138.249 | H11: ='E1.1 Proposed Dist Rates '!H10*'E1.2 Billing Determinants'!G11/100 -> 520199.2024 | I11: ='E1.1 Proposed Dist Rates '!I10*'E1.2 Billing Determinants'!H11/100 -> 71931.95201 | J11: ='E1.1 Proposed Dist Rates '!J10*'E1.2 Billing Determinants'!I11/100*$D$7 -> 0 | K11: ='E1.1 Proposed Dist Rates '!K10*'E1.2 Billing Determinants'!J11/100 -> 1688818.791 | L11: ='E1.1 Proposed Dist Rates '!L10*'E1.2 Billing Determinants'!$J11/100 -> 81111.1983 | M11: ='E1.1 Proposed Dist Rates '!M10*'E1.2 Billing Determinants'!$J11/100 -> 148476.4147 | N11: ='E1.1 Proposed Dist Rates '!Q10*'E1.2 Billing Determinants'!J11/100 -> 538723.6305 | O11: =SUM(E11:N11) -> 5654038.532
C12: Rate 6 | D12: Large Volume General Firm Service | E12: ='E1.1 Proposed Dist Rates '!E11*'E1.2 Billing Determinants'!E12*$D$7 -> 45920.14552 | F12: ='E1.1 Proposed Dist Rates '!F11*'E1.2 Billing Determinants'!E12*$D$7 -> 420 | G12: ='E1.1 Proposed Dist Rates '!G11*'E1.2 Billing Determinants'!F12/100 -> 76277.85843 | H12: ='E1.1 Proposed Dist Rates '!H11*'E1.2 Billing Determinants'!G12/100 -> 215402.8832 | I12: ='E1.1 Proposed Dist Rates '!I11*'E1.2 Billing Determinants'!H12/100 -> 201636.1474 | J12: ='E1.1 Proposed Dist Rates '!J11*'E1.2 Billing Determinants'!I12/100*$D$7 -> 0 | K12: ='E1.1 Proposed Dist Rates '!K11*'E1.2 Billing Determinants'!J12/100 -> 638764.6466 | L12: ='E1.1 Proposed Dist Rates '!L11*'E1.2 Billing Determinants'!$J12/100 -> 60774.8652 | M12: ='E1.1 Proposed Dist Rates '!M11*'E1.2 Billing Determinants'!$J12/100 -> 117414.1257 | N12: ='E1.1 Proposed Dist Rates '!Q11*'E1.2 Billing Determinants'!J12/100 -> 203762.3049 | O12: =SUM(E12:N12) -> 1560372.977
C13: Rate 11 | D13: Large Volume Seasonal Service | E13: ='E1.1 Proposed Dist Rates '!E12*'E1.2 Billing Determinants'!E13*$D$7 -> 18367.18479 | F13: ='E1.1 Proposed Dist Rates '!F12*'E1.2 Billing Determinants'!E13*$D$7 -> 84 | G13: ='E1.1 Proposed Dist Rates '!G12*'E1.2 Billing Determinants'!F13/100 -> 0 | H13: ='E1.1 Proposed Dist Rates '!H12*'E1.2 Billing Determinants'!G13/100 -> 0 | I13: ='E1.1 Proposed Dist Rates '!I12*'E1.2 Billing Determinants'!H13/100 -> 216114.9134 | J13: ='E1.1 Proposed Dist Rates '!J12*'E1.2 Billing Determinants'!I13/100*$D$7 -> 0 | K13: ='E1.1 Proposed Dist Rates '!K12*'E1.2 Billing Determinants'!J13/100 -> 403008.0544 | L13: ='E1.1 Proposed Dist Rates '!L12*'E1.2 Billing Determinants'!$J13/100 -> 462.228448 | M13: ='E1.1 Proposed Dist Rates '!M12*'E1.2 Billing Determinants'!$J13/100 -> 23854.66473 | N13: ='E1.1 Proposed Dist Rates '!Q12*'E1.2 Billing Determinants'!J13/100 -> 128557.2871 | O13: =SUM(E13:N13) -> 790448.3328
C14: Rate 16 | D14: Contracted Firm Service | E14: ='E1.1 Proposed Dist Rates '!E13*'E1.2 Billing Determinants'!E14*$D$7 -> 57879.78399 | F14: ='E1.1 Proposed Dist Rates '!F13*'E1.2 Billing Determinants'!E14*$D$7 -> 36 | G14: ='E1.1 Proposed Dist Rates '!G13*'E1.2 Billing Determinants'!F14/100 -> 0 | H14: ='E1.1 Proposed Dist Rates '!H13*'E1.2 Billing Determinants'!G14/100 -> 0 | I14: ='E1.1 Proposed Dist Rates '!I13*'E1.2 Billing Determinants'!H14/100 -> 0 | J14: ='E1.1 Proposed Dist Rates '!J13*'E1.2 Billing Determinants'!I14/100*$D$7 -> 1261024.171 | K14: ='E1.1 Proposed Dist Rates '!K13*'E1.2 Billing Determinants'!J14/100 -> 0 | L14: ='E1.1 Proposed Dist Rates '!L13*'E1.2 Billing Determinants'!$I14/100*$D$7 -> 163783.1474 | M14: ='E1.1 Proposed Dist Rates '!N13*'E1.2 Billing Determinants'!$I14/100*$D$7 -> 210428.3541 | N14: ='E1.1 Proposed Dist Rates '!Q13*'E1.2 Billing Determinants'!I14/100*$D$7 -> 112574.0352 | O14: =SUM(E14:N14) -> 1805725.492
C15: (A) Transportation & Storage for Rates 1, 6, and 11. Transportation only (no seasonal storage) for Rate 16 from Dawn. | N15: Proposed Revenue | O15: =SUM(O11:O14) -> 9810585.334
N16: Current Revenue | O16: ='B1.3 Current Rev From Rates'!O18 -> 9706511.024
N17: Change | O17: =O15-O16 -> 104074.3095
N18: % Change | O18: =O17/O16 -> 0.01072211315

Sheet F1.3 Rate Riders
C2: ='A1.1 Distributor Information'!C3 -> Name of LDC: EPCOR Natural Gas Limited Partnership
C3: ='A1.1 Distributor Information'!C4 -> OEB Application Number: EB-2022-0184 Exhibit A - 2023 Custom Incentive Application
C4: F1.3 Rate Riders
C6: Delay in Revenue Recovery Rate Rider
E7: Delay in Revenue Recovery Rate Rider
C9: Rate 1 | General Firm Service | E9: 1.633 | F9: Cents/m3
C10: Rate 6 | Large Volume General Firm Service | E10: 0.909 | F10: Cents/m3
C11: Rate 11 | Large Volume Seasonal Service | E11: 0.5524 | F11: Cents/m3
C12: Rate 16 | Contracted Firm Service | E12: 0.0601 | F12: Cents/contracted demand m3/month
C15: Energy Content Variance Account (ECVA)
E16: ECVA Rate Rider
C18: Rate 1 | General Firm Service | E18: 0.343701759 | F18: Cents/m3
C19: Rate 6 | Large Volume General Firm Service | E19: 0.2778363971 | F19: Cents/m3
C20: Rate 11 | Large Volume Seasonal Service | E20: 0.1856783964 | F20: Cents/m3
C21: Rate 16 | Contracted Firm Service | E21: 0 | F21: Cents/contracted demand m3
C24: Contribution in Aid of Construction Variance Account (CIACVA)
E25: CIACVA Rate Rider
C27: Rate 1 | General Firm Service | E27: 3.338837172 | F27: Cents/m3
C28: Rate 6 | Large Volume General Firm Service | E28: 3.138451332 | F28: Cents/m3
C29: Rate 11 | Large Volume Seasonal Service | E29: 0.6073811326 | F29: Cents/m3
C30: Rate 16 | Contracted Firm Service | E30: 4.531061258 | F30: Cents/contracted demand m3/month
C33: Municipal Tax Variance Account
E34: MTVA Rate Rider
C36: Rate 1 | General Firm Service | E36: -2.7906 | F36: Cents/m3
C37: Rate 6 | Large Volume General Firm Service | E37: -3.404 | F37: Cents/m3
C38: Rate 11 | Large Volume Seasonal Service | E38: -0.6604 | F38: Cents/m3
C39: Rate 16 | Contracted Firm Service | E39: -4.5564 | F39: Cents/contracted demand m3/month

Sheet G1.1 Rate 1 Bill Impact
C2: ='A1.1 Distributor Information'!C3 -> Name of LDC: EPCOR Natural Gas Limited Partnership
C3: ='A1.1 Distributor Information'!C4 -> OEB Application Number: EB-2022-0184 Exhibit A - 2023 Custom Incentive Application
C5: Rate 1 Delivery Bill Impact
C6: G1.1 Rate 1 Bill Impact
C8: Rate 1
C10: Rate 1 - Existing Residential | E10: Units | F10: Current Rate | H10: Proposed Rate
C12: Customer | E12: $/month | F12: =INDEX('B1.1 Current Distribution Rates'!$E$10:$Q$13,MATCH($C$8,'B1.1 Current Distribution Rates'!$C$10:$C$13,0),COUNTA('G1.1 Rate 1 Bill Impact'!$C$12:C12)) -> 26.272398 | H12: =INDEX('E1.1 Proposed Dist Rates '!$E$10:$Q$13,MATCH($C$8,'E1.1 Proposed Dist Rates '!$C$10:$C$13,0),COUNTA($C$12:C12)) -> 26.80572768
C13: =OneDollar -> Bill 32 Rate | E13: $/month | F13: =INDEX('B1.1 Current Distribution Rates'!$E$10:$Q$13,MATCH($C$8,'B1.1 Current Distribution Rates'!$C$10:$C$13,0),COUNTA('G1.1 Rate 1 Bill Impact'!$C$12:C13)) -> 1 | H13: =INDEX('E1.1 Proposed Dist Rates '!$E$10:$Q$13,MATCH($C$8,'E1.1 Proposed Dist Rates '!$C$10:$C$13,0),COUNTA($C$12:C13)) -> 1
C14: First 100 m3 | E14: ₵/m3 | F14: =INDEX('B1.1 Current Distribution Rates'!$E$10:$Q$13,MATCH($C$8,'B1.1 Current Distribution Rates'!$C$10:$C$13,0),COUNTA('G1.1 Rate 1 Bill Impact'!$C$12:C14)) -> 28.1485611 | H14: =INDEX('E1.1 Proposed Dist Rates '!$E$10:$Q$13,MATCH($C$8,'E1.1 Proposed Dist Rates '!$C$10:$C$13,0),COUNTA($C$12:C14)) -> 28.71997689
C15: Next 400 m3 | E15: ₵/m3 | F15: =INDEX('B1.1 Current Distribution Rates'!$E$10:$Q$13,MATCH($C$8,'B1.1 Current Distribution Rates'!$C$10:$C$13,0),COUNTA('G1.1 Rate 1 Bill Impact'!$C$12:C15)) -> 27.59406879 | H15: =INDEX('E1.1 Proposed Dist Rates '!$E$10:$Q$13,MATCH($C$8,'E1.1 Proposed Dist Rates '!$C$10:$C$13,0),COUNTA($C$12:C15)) -> 28.15422839
C16: GT 500m3 | E16: ₵/m3 | F16: =INDEX('B1.1 Current Distribution Rates'!$E$10:$Q$13,MATCH($C$8,'B1.1 Current Distribution Rates'!$C$10:$C$13,0),COUNTA('G1.1 Rate 1 Bill Impact'!$C$12:C16)) -> 26.77899261 | H16: =INDEX('E1.1 Proposed Dist Rates '!$E$10:$Q$13,MATCH($C$8,'E1.1 Proposed Dist Rates '!$C$10:$C$13,0),COUNTA($C$12:C16)) -> 27.32260616
C17: Contracted Demand | E17: ₵ / contracted m3 | F17: =INDEX('B1.1 Current Distribution Rates'!$E$10:$Q$13,MATCH($C$8,'B1.1 Current Distribution Rates'!$C$10:$C$13,0),COUNTA('G1.1 Rate 1 Bill Impact'!$C$12:C17)) -> 0 | H17: =INDEX('E1.1 Proposed Dist Rates '!$E$10:$Q$13,MATCH($C$8,'E1.1 Proposed Dist Rates '!$C$10:$C$13,0),COUNTA($C$12:C17)) -> 0
C18: Gas Supply | E18: ₵/m3 | F18: =INDEX('B1.1 Current Distribution Rates'!$E$10:$Q$13,MATCH($C$8,'B1.1 Current Distribution Rates'!$C$10:$C$13,0),COUNTA('G1.1 Rate 1 Bill Impact'!$C$12:C18)) -> 30.6902 | H18: =INDEX('E1.1 Proposed Dist Rates '!$E$10:$Q$13,MATCH($C$8,'E1.1 Proposed Dist Rates '!$C$10:$C$13,0),COUNTA($C$12:C18)) -> 30.6902
C19: Upstream Recovery Charge | E19: $/m3 | F19: =INDEX('B1.1 Current Distribution Rates'!$E$10:$Q$13,MATCH($C$8,'B1.1 Current Distribution Rates'!$C$10:$C$13,0),COUNTA('G1.1 Rate 1 Bill Impact'!$C$12:C19)) -> 1.474 | H19: =INDEX('E1.1 Proposed Dist Rates '!$E$10:$Q$13,MATCH($C$8,'E1.1 Proposed Dist Rates '!$C$10:$C$13,0),COUNTA($C$12:C19)) -> 1.474
C20: Transportation & Storage Charge | E20: ₵/m3 | F20: =INDEX('B1.1 Current Distribution Rates'!$E$10:$Q$13,MATCH($C$8,'B1.1 Current Distribution Rates'!$C$10:$C$13,0),COUNTA('G1.1 Rate 1 Bill Impact'!$C$12:C20)) -> 2.6982 | H20: =INDEX('E1.1 Proposed Dist Rates '!$E$10:$Q$13,MATCH($C$8,'E1.1 Proposed Dist Rates '!$C$10:$C$13,0),COUNTA($C$12:C20)) -> 2.6982
C21: Federal Carbon Charge | E21: ₵/m3 | F21: ='B1.1 Current Distribution Rates'!Q10 -> 9.79 | H21: ='E1.1 Proposed Dist Rates '!Q10 -> 9.79
C23: Rate Riders
C24: Delay in Revenue Recovery Rate Rider | E24: ₵/m3 | F24: ='C1.1 Current Rate Riders'!E10 -> 1.633 | H24: ='F1.3 Rate Riders'!E9 -> 1.633
C25: ='F1.3 Rate Riders'!$E$16 -> ECVA Rate Rider | E25: ₵/m3 | F25: ='C1.1 Current Rate Riders'!E19 -> 0.1403 | H25: ='F1.3 Rate Riders'!E18 -> 0.343701759
C26: ='C1.1 Current Rate Riders'!E35 -> EFVA Rate Rider | E26: ₵/m3 | F26: ='C1.1 Current Rate Riders'!E37 -> 0.5197 | H26: ='F1.3 Rate Riders'!E26 -> 0
C27: ='F1.3 Rate Riders'!$E$25 -> CIACVA Rate Rider | E27: ₵/m3 | F27: ='C1.1 Current Rate Riders'!E28 -> 0.5434 | H27: ='F1.3 Rate Riders'!E27 -> 3.338837172
C28: ='F1.3 Rate Riders'!$E$34 -> MTVA Rate Rider | E28: ₵/m3 | F28: 0 | H28: ='F1.3 Rate Riders'!E36 -> -2.7906
C30: Delivery | E30: Metric | F30: Current Rate | H30: Proposed Rate | J30: Change $ | L30: Change %
C31: Customer | E31: 12 | F31: =F12*$E31 -> 315.268776 | H31: =H12*$E31 -> 321.6687322 | J31: =H31-F31 -> 6.399956153 | L31: =J31/F31 -> 0.0203
C32: =OneDollar -> Bill 32 Rate | E32: 12 | F32: =F13*$E32 -> 12 | H32: =H13*$E32 -> 12 | J32: =H32-F32 -> 0 | L32: =J32/F32 -> 0
C33: First 100 m3 | E33: 1001.316053 | F33: =F14*$E33/100 -> 281.8560609 | H33: =H14*$E33/100 -> 287.5777389 | J33: =H33-F33 -> 5.721678037 | L33: =J33/F33 -> 0.0203
C34: Next 400 m3 | E34: 1147.683947 | F34: 316.6926979 | H34: 323.1215597 | J34: 6.428861767 | L34: 0.0203
C35: GT 500m3 | E35: 0 | F35: 0 | H35: 0 | J35: 0
C36: Contracted Demand | E36: 0 | F36: 0 | H36: 0 | J36: 0
C37: Gas Supply | E37: =SUM(E33:E36) -> 2149 | F37: 659.532398 | H37: 659.532398 | J37: 0 | L37: 0
C38: Upstream Recovery Charge | E38: =E37 -> 2149 | F38: 31.67626 | H38: 31.67626 | J38: 0 | L38: 0
C39: Transportation & Storage Charge | E39: =E38 -> 2149 | F39: 57.984318 | H39: 57.984318 | J39: 0 | L39: 0
C40: Federal Carbon Charge | E40: =E37 -> 2149 | F40: 210.3871 | H40: 210.3871 | J40: 0 | L40: 0
C41: Total Delivery | F41: =SUM(F31:F40) -> 1885.397611 | H41: =SUM(H31:H40) -> 1903.948107 | J41: =SUM(J31:J40) -> 18.55049596 | L41: =J41/F41 -> 0.009839036525
C43: Rate Riders | E43: Metric | F43: Current Rate | H43: Proposed Rate | J43: Change $ | L43: Change %
C44: Delay in Revenue Recovery Rate Rider | E44: =E37 -> 2149 | F44: =$E44*F24/100 -> 35.09317 | H44: =$E44*H24/100 -> 35.09317 | J44: =H44-F44 -> 0 | L44: =J44/F44 -> 0
C45: ='F1.3 Rate Riders'!$E$16 -> ECVA Rate Rider | E45: =E44 -> 2149 | F45: =$E45*F25/100 -> 3.015047 | H45: =$E45*H25/100 -> 7.386150801 | J45: =H45-F45 -> 4.371103801 | L45: =J45/F45 -> 1.449763072
C46: ='C1.1 Current Rate Riders'!E35 -> EFVA Rate Rider | E46: =E44 -> 2149 | F46: =$E46*F26/100 -> 11.168353 | H46: =$E46*H26/100 -> 0 | J46: =H46-F46 -> -11.168353 | L46: =J46/F46 -> -1
C47: ='F1.3 Rate Riders'!$E$25 -> CIACVA Rate Rider | E47: =E45 -> 2149 | F47: =$E47*F27/100 -> 11.677666 | H47: =$E47*H27/100 -> 71.75161084 | J47: 60.07394484 | L47: 5.144345183
C48: ='F1.3 Rate Riders'!$E$34 -> MTVA Rate Rider | E48: =E47 -> 2149 | F48: =$E48*F28/100 -> 0 | H48: =$E48*H28/100 -> -59.969994 | J48: -59.969994
C49: Total Rate Riders | F49: =SUM(F44:F48) -> 60.954236 | H49: =SUM(H44:H48) -> 54.26093764 | J49: =SUM(J44:J48) -> -6.693298362 | L49: =J49/F49 -> -0.1098085843
C51: Total Bill Impact | F51: =F41+F49 -> 1946.351847 | H51: =H41+H49 -> 1958.209044 | J51: =J41+J49 -> 11.85719759 | L51: =J51/F51 -> 0.006092011377
C54: Rate 1 - New Residential | E54: Units | F54: Current Rate | H54: Proposed Rate
C56: Customer | E56: $/month | F56: =F12 -> 26.272398 | H56: =H12 -> 26.80572768
C57: =OneDollar -> Bill 32 Rate | E57: $/month | F57: 1 | H57: 1
C58: First 100 m3 | E58: ₵/m3 | F58: 28.1485611 | H58: 28.71997689
C59: Next 400 m3 | E59: ₵/m3 | F59: 27.59406879 | H59: 28.15422839
C60: GT 500m3 | E60: ₵/m3 | F60: 26.77899261 | H60: 27.32260616
C61: Contracted Demand | E61: ₵ / contracted m3 | F61: 0 | H61: 0
C62: Gas Supply | E62: ₵/m3 | F62: 30.6902 | H62: 30.6902
C63: Upstream Recovery Charge | E63: ₵/m3 | F63: 1.474 | H63: 1.474
C64: Transportation & Storage Charge | E64: ₵/m3 | F64: 2.6982 | H64: 2.6982
C65: Federal Carbon Charge | E65: ₵/m3 | F65: 9.79 | H65: 9.79
C67: Rate Riders
C68: Delay in Revenue Recovery Rate Rider | E68: ₵/m3 | F68: =F24 -> 1.633 | H68: =H24 -> 1.633
C69: ='F1.3 Rate Riders'!$E$16 -> ECVA Rate Rider | E69: ₵/m3 | F69: =F25 -> 0.1403 | H69: =H25 -> 0.343701759
C70: =C46 -> EFVA Rate Rider | E70: ₵/m3 | F70: =F26 -> 0.5197 | H70: =H26 -> 0
C71: ='F1.3 Rate Riders'!$E$25 -> CIACVA Rate Rider | E71: ₵/m3 | F71: =F27 -> 0.5434 | H71: =H27 -> 3.338837172
C72: ='F1.3 Rate Riders'!$E$34 -> MTVA Rate Rider | E72: ₵/m3 | F72: =F28 -> 0 | H72: =H28 -> -2.7906
C74: Delivery | E74: Metric | F74: Current Rate | H74: Proposed Rate | J74: Change $ | L74: Change %
C75: Customer | E75: 12 | F75: =F56*$E75 -> 315.268776 | H75: =H56*$E75 -> 321.6687322 | J75: =H75-F75 -> 6.399956153 | L75: =J75/F75 -> 0.0203
C76: =OneDollar -> Bill 32 Rate | E76: =E75 -> 12 | F76: =F57*$E76 -> 12 | H76: =H57*$E76 -> 12 | J76: =H76-F76 -> 0 | L76: =J76/F76 -> 0
C77: First 100 m3 | E77: 993.1296044 | F77: =F58*$E77/100 -> 279.5516935 | H77: =H58*$E77/100 -> 285.2265929 | J77: =H77-F77 -> 5.674899378 | L77: =J77/F77 -> 0.0203
C78: Next 400 m3 | E78: 1072.870396 | F78: 296.048595 | H78: 302.0583815 | J78: 6.009786478 | L78: 0.0203
C79: GT 500m3 | E79: 0 | F79: 0 | H79: 0 | J79: 0
C80: Contracted Demand | E80: 0 | F80: 0 | H80: 0 | J80: 0
C81: Gas Supply | E81: =SUM(E77:E80) -> 2066 | F81: 634.059532 | H81: 634.059532 | J81: 0 | L81: 0
C82: Upstream Recovery Charge | E82: =E81 -> 2066 | F82: 30.45284 | H82: 30.45284 | J82: 0 | L82: 0
C83: Transportation & Storage Charge | E83: =E82 -> 2066 | F83: 55.744812 | H83: 55.744812 | J83: 0 | L83: 0
C84: Federal Carbon Charge | E84: =E81 -> 2066 | F84: 202.2614 | H84: 202.2614 | J84: 0 | L84: 0
C85: Total Delivery | F85: =SUM(F75:F84) -> 1825.387648 | H85: =SUM(H75:H84) -> 1843.47229 | J85: =SUM(J75:J84) -> 18.08464201 | L85: =J85/F85 -> 0.009907288473
C87: Rate Riders | E87: Metric | F87: Current Rate | H87: Proposed Rate | J87: Change $ | L87: Change %
C88: Delay in Revenue Recovery Rate Rider | E88: =E81 -> 2066 | F88: =$E88*F68/100 -> 33.73778 | H88: =$E88*H68/100 -> 33.73778 | J88: =H88-F88 -> 0 | L88: =J88/F88 -> 0
C89: ='F1.3 Rate Riders'!$E$16 -> ECVA Rate Rider | E89: =E88 -> 2066 | F89: =$E89*F69/100 -> 2.898598 | H89: =$E89*H69/100 -> 7.100878341 | J89: =H89-F89 -> 4.202280341 | L89: =J89/F89 -> 1.449763072
C90: =C70 -> EFVA Rate Rider | E90: =E88 -> 2066 | F90: =$E90*F70/100 -> 10.737002 | H90: =$E90*H70/100 -> 0 | J90: =H90-F90 -> -10.737002 | L90: =J90/F90 -> -1
C91: ='F1.3 Rate Riders'!$E$25 -> CIACVA Rate Rider | E91: =E89 -> 2066 | F91: =$E91*F71/100 -> 11.226644 | H91: =$E91*H71/100 -> 68.98037598 | J91: 57.75373198 | L91: 5.144345183
C92: ='F1.3 Rate Riders'!$E$34 -> MTVA Rate Rider | E92: =E91 -> 2066 | F92: =$E92*F72/100 -> 0 | H92: =$E92*H72/100 -> -57.653796 | J92: -57.653796
C93: Total Rate Riders | F93: =SUM(F88:F92) -> 58.600024 | H93: =SUM(H88:H92) -> 52.16523832 | J93: =SUM(J88:J92) -> -6.434785676 | L93: =J93/F93 -> -0.1098085843
C95: Total Bill Impact | F95: =F85+F93 -> 1883.987672 | H95: =H85+H93 -> 1895.637529 | J95: =J85+J93 -> 11.64985633 | L95: =J95/F95 -> 0.00618361601
C97: Rate 1 - Small Commercial | E97: Units | F97: Current Rate | H97: Proposed Rate
C99: Customer | E99: $/month | F99: =F56 -> 26.272398 | H99: =H56 -> 26.80572768
C100: =OneDollar -> Bill 32 Rate | E100: $/month | F100: 1 | H100: 1
C101: First 100 m3 | E101: ₵/m3 | F101: 28.1485611 | H101: 28.71997689
C102: Next 400 m3 | E102: ₵/m3 | F102: 27.59406879 | H102: 28.15422839
C103: GT 500m3 | E103: ₵/m3 | F103: 26.77899261 | H103: 27.32260616
C104: Contracted Demand | E104: ₵ / contracted m3 | F104: 0 | H104: 0
C105: Gas Supply | E105: ₵/m3 | F105: 30.6902 | H105: 30.6902
C106: Upstream Recovery Charge | E106: ₵/m3 | F106: 1.474 | H106: 1.474
C107: Transportation & Storage Charge | E107: ₵/m3 | F107: 2.6982 | H107: 2.6982
C108: Federal Carbon Charge | E108: ₵/m3 | F108: 9.79 | H108: 9.79
C110: Rate Riders
C111: Delay in Revenue Recovery Rate Rider | E111: ₵/m3 | F111: =F68 -> 1.633 | H111: =H68 -> 1.633
C112: ='F1.3 Rate Riders'!$E$16 -> ECVA Rate Rider | E112: ₵/m3 | F112: =F69 -> 0.1403 | H112: =H69 -> 0.343701759
C113: =C90 -> EFVA Rate Rider | E113: ₵/m3 | F113: =F70 -> 0.5197 | H113: =H70 -> 0
C114: ='F1.3 Rate Riders'!$E$25 -> CIACVA Rate Rider | E114: ₵/m3 | F114: =F71 -> 0.5434 | H114: =H71 -> 3.338837172
C115: ='F1.3 Rate Riders'!$E$34 -> MTVA Rate Rider | E115: ₵/m3 | F115: =F72 -> 0 | H115: =H72 -> -2.7906
C117: Delivery | E117: Metric | F117: Current Rate | H117: Proposed Rate | J117: Change $ | L117: Change %
C118: Customer | E118: 12 | F118: =F99*$E118 -> 315.268776 | H118: =H99*$E118 -> 321.6687322 | J118: =H118-F118 -> 6.399956153 | L118: =J118/F118 -> 0.0203
C119: =OneDollar -> Bill 32 Rate | E119: =E118 -> 12 | F119: =F100*$E119 -> 12 | H119: =H100*$E119 -> 12 | J119: =H119-F119 -> 0 | L119: =J119/F119 -> 0
C120: First 100 m3 | E120: 1198.170987 | F120: =F101*$E120/100 -> 337.2678923 | H120: =H101*$E120/100 -> 344.1144305 | J120: =H120-F120 -> 6.846538214 | L120: =J120/F120 -> 0.0203
C121: Next 400 m3 | E121: 2475.004093 | F121: 682.9543319 | H121: 696.8183049 | J121: 13.86397294 | L121: 0.0203
C122: GT 500m3 | E122: 1019.82492 | F122: 273.0988401 | H122: 278.6427465 | J122: 5.543906453 | L122: 0.0203
C123: Contracted Demand | E123: 0 | F123: 0 | H123: 0 | J123: 0
C124: Gas Supply | E124: =SUM(E120:E123) -> 4693 | F124: 1440.291086 | H124: 1440.291086 | J124: 0 | L124: 0
C125: Upstream Recovery Charge | E125: =E124 -> 4693 | F125: 69.17482 | H125: 69.17482 | J125: 0 | L125: 0
C126: Transportation & Storage Charge | E126: =E125 -> 4693 | F126: 126.626526 | H126: 126.626526 | J126: 0 | L126: 0
C127: Federal Carbon Charge | E127: =E124 -> 4693 | F127: 459.4447 | H127: 459.4447 | J127: 0 | L127: 0
C128: Total Delivery | F128: =SUM(F118:F127) -> 3716.126972 | H128: =SUM(H118:H127) -> 3748.781346 | J128: =SUM(J118:J127) -> 32.65437376 | L128: =J128/F128 -> 0.008787206143
C130: Rate Riders | E130: Metric | F130: Current Rate | H130: Proposed Rate | J130: Change $ | L130: Change %
C131: Delay in Revenue Recovery Rate Rider | E131: =E124 -> 4693 | F131: =$E131*F111/100 -> 76.63669 | H131: =$E131*H111/100 -> 76.63669 | J131: =H131-F131 -> 0 | L131: =J131/F131 -> 0
C132: ='F1.3 Rate Riders'!$E$16 -> ECVA Rate Rider | E132: =E131 -> 4693 | F132: =$E132*F112/100 -> 6.584279 | H132: =$E132*H112/100 -> 16.12992355 | J132: =H132-F132 -> 9.54564455 | L132: =J132/F132 -> 1.449763072
C133: =C113 -> EFVA Rate Rider | E133: =E131 -> 4693 | F133: =$E133*F113/100 -> 24.389521 | H133: =$E133*H113/100 -> 0 | J133: =H133-F133 -> -24.389521 | L133: =J133/F133 -> -1
C134: ='F1.3 Rate Riders'!$E$25 -> CIACVA Rate Rider | E134: =E132 -> 4693 | F134: =$E134*F114/100 -> 25.501762 | H134: =$E134*H114/100 -> 156.6916285 | J134: 131.1898665 | L134: 5.144345183
C135: ='F1.3 Rate Riders'!$E$34 -> MTVA Rate Rider | E135: =E134 -> 4693 | F135: =$E135*F115/100 -> 0 | H135: =$E135*H115/100 -> -130.962858 | J135: -130.962858
C136: Total Rate Riders | F136: =SUM(F131:F135) -> 133.112252 | H136: =SUM(H131:H135) -> 118.4953841 | J136: =SUM(J131:J135) -> -14.61686795 | L136: =J136/F136 -> -0.1098085843
C138: Total Bill Impact | F138: =F128+F136 -> 3849.239224 | H138: =H128+H136 -> 3867.27673 | J138: =J128+J136 -> 18.03750581 | L138: =J138/F138 -> 0.004685992416
C140: Rate 1 - Small Agricultural | E140: Units | F140: Current Rate | H140: Proposed Rate
C142: Customer | E142: $/month | F142: =F99 -> 26.272398 | H142: =H99 -> 26.80572768
C143: =OneDollar -> Bill 32 Rate | E143: $/month | F143: 1 | H143: 1
C144: First 100 m3 | E144: ₵/m3 | F144: =F101 -> 28.1485611 | H144: =H101 -> 28.71997689
C145: Next 400 m3 | E145: ₵/m3 | F145: 27.59406879 | H145: 28.15422839
C146: GT 500m3 | E146: ₵/m3 | F146: 26.77899261 | H146: 27.32260616
C147: Contracted Demand | E147: ₵ / contracted m3 | F147: 0 | H147: 0
C148: Gas Supply | E148: ₵/m3 | F148: 30.6902 | H148: 30.6902
C149: Upstream Recovery Charge | E149: ₵/m3 | F149: 1.474 | H149: 1.474
C150: Transportation & Storage Charge | E150: ₵/m3 | F150: 2.6982 | H150: 2.6982
C151: Federal Carbon Charge | E151: ₵/m3 | F151: 9.79 | H151: 9.79
C153: Rate Riders
C154: Delay in Revenue Recovery Rate Rider | E154: ₵/m3 | F154: =F111 -> 1.633 | H154: =H111 -> 1.633
C155: ='F1.3 Rate Riders'!$E$16 -> ECVA Rate Rider | E155: ₵/m3 | F155: =F112 -> 0.1403 | H155: =H112 -> 0.343701759
C156: =C133 -> EFVA Rate Rider | E156: ₵/m3 | F156: =F113 -> 0.5197 | H156: =H113 -> 0
C157: ='F1.3 Rate Riders'!$E$25 -> CIACVA Rate Rider | E157: ₵/m3 | F157: =F114 -> 0.5434 | H157: =H114 -> 3.338837172
C158: ='F1.3 Rate Riders'!$E$34 -> MTVA Rate Rider | E158: ₵/m3 | F158: =F115 -> 0 | H158: =H115 -> -2.7906
C160: Delivery | E160: Metric | F160: Current Rate | H160: Proposed Rate | J160: Change $ | L160: Change %
C161: Customer | E161: 12 | F161: =F142*$E161 -> 315.268776 | H161: =H142*$E161 -> 321.6687322 | J161: =H161-F161 -> 6.399956153 | L161: =J161/F161 -> 0.0203
C162: =OneDollar -> Bill 32 Rate | E162: =E161 -> 12 | F162: =F143*$E162 -> 12 | H162: =H143*$E162 -> 12 | J162: =H162-F162 -> 0 | L162: =J162/F162 -> 0
C163: First 100 m3 | E163: 1198.735789 | F163: =F144*$E163/100 -> 337.426876 | H163: =H144*$E163/100 -> 344.2766416 | J163: =H163-F163 -> 6.849765583 | L163: =J163/F163 -> 0.0203
C164: Next 400 m3 | E164: 2484.065484 | F164: 685.4547385 | H164: 699.3694697 | J164: 13.91473119 | L164: 0.0203
C165: GT 500m3 | E165: 1037.198727 | F165: 277.7513704 | H165: 283.3897232 | J165: 5.638352819 | L165: 0.0203
C166: Contracted Demand | E166: 0 | F166: 0 | H166: 0 | J166: 0
C167: Commodity | E167: =SUM(E163:E166) -> 4720 | F167: 1448.57744 | H167: 1448.57744 | J167: 0 | L167: 0
C168: Upstream Recovery Charge | E168: =E167 -> 4720 | F168: 69.5728 | H168: 69.5728 | J168: 0 | L168: 0
C169: Transportation & Storage Charge | E169: =E168 -> 4720 | F169: 127.35504 | H169: 127.35504 | J169: 0 | L169: 0
C170: Federal Carbon Charge | E170: =E167 -> 4720 | F170: 462.088 | H170: 462.088 | J170: 0 | L170: 0
C171: Total Delivery | F171: =SUM(F161:F170) -> 3735.495041 | H171: =SUM(H161:H170) -> 3768.297847 | J171: =SUM(J161:J170) -> 32.80280575 | L171: =J171/F171 -> 0.008781381152
C173: Rate Riders | E173: Metric | F173: Current Rate | H173: Proposed Rate | J173: Change $ | L173: Change %
C174: Delay in Revenue Recovery Rate Rider | E174: =E167 -> 4720 | F174: =$E174*F154/100 -> 77.0776 | H174: =$E174*H154/100 -> 77.0776 | J174: =H174-F174 -> 0 | L174: =J174/F174 -> 0
C175: ='F1.3 Rate Riders'!$E$16 -> ECVA Rate Rider | E175: =E174 -> 4720 | F175: =$E175*F155/100 -> 6.62216 | H175: =$E175*H155/100 -> 16.22272302 | J175: =H175-F175 -> 9.600563025 | L175: =J175/F175 -> 1.449763072
C176: =C156 -> EFVA Rate Rider | E176: =E174 -> 4720 | F176: =$E176*F156/100 -> 24.52984 | H176: =$E176*H156/100 -> 0 | J176: =H176-F176 -> -24.52984 | L176: =J176/F176 -> -1
C177: ='F1.3 Rate Riders'!$E$25 -> CIACVA Rate Rider | E177: 4720 | F177: 25.64848 | H177: 157.5931145 | J177: 131.9446345 | L177: 5.144345183
C178: ='F1.3 Rate Riders'!$E$34 -> MTVA Rate Rider | E178: =E177 -> 4720 | F178: =$E178*F158/100 -> 0 | H178: =$E178*H158/100 -> -131.71632 | J178: -131.71632
C179: Total Rate Riders | F179: =SUM(F174:F178) -> 133.87808 | H179: =SUM(H174:H178) -> 119.1771176 | J179: =SUM(J174:J178) -> -14.70096243 | L179: =J179/F179 -> -0.1098085843
C181: Total Bill Impact | F181: =F171+F179 -> 3869.373121 | H181: =H171+H179 -> 3887.474964 | J181: =J171+J179 -> 18.10184331 | L181: =J181/F181 -> 0.004678236693

Sheet G1.2 Rate 6 Bill Impact
C2: ='A1.1 Distributor Information'!C3 -> Name of LDC: EPCOR Natural Gas Limited Partnership
C3: ='A1.1 Distributor Information'!C4 -> OEB Application Number: EB-2022-0184 Exhibit A - 2023 Custom Incentive Application
C5: Rate 6 Delivery Bill Impact
C6: G1.2 Rate 6 Bill Impact
C8: Rate 6 - Medium Commercial | E8: Units | F8: Current Rate | H8: Proposed Rate
C10: Customer | E10: $/month | F10: =INDEX('B1.1 Current Distribution Rates'!$E$10:$Q$13,2,COUNTA($C$10:C10)) -> 107.158365 | H10: =INDEX('E1.1 Proposed Dist Rates '!$E$10:$Q$13,2,COUNTA($C$10:C10)) -> 109.3336798
C11: =OneDollar -> Bill 32 Rate | E11: $/month | F11: =INDEX('B1.1 Current Distribution Rates'!$E$10:$Q$13,2,COUNTA($C$10:C11)) -> 1 | H11: =INDEX('E1.1 Proposed Dist Rates '!$E$10:$Q$13,2,COUNTA($C$10:C11)) -> 1
C12: First 1000 m3 | E12: ₵/m3 | F12: =INDEX('B1.1 Current Distribution Rates'!$E$10:$Q$13,2,COUNTA($C$10:C12)) -> 25.96778901 | H12: =INDEX('E1.1 Proposed Dist Rates '!$E$10:$Q$13,2,COUNTA($C$10:C12)) -> 26.49493513
C13: Next 6000 m3 | E13: ₵/m3 | F13: =INDEX('B1.1 Current Distribution Rates'!$E$10:$Q$13,2,COUNTA($C$10:C13)) -> 23.3710203 | H13: =INDEX('E1.1 Proposed Dist Rates '!$E$10:$Q$13,2,COUNTA($C$10:C13)) -> 23.84545201
C14: GT 7000m3 | E14: ₵/m3 | F14: =INDEX('B1.1 Current Distribution Rates'!$E$10:$Q$13,2,COUNTA($C$10:C14)) -> 22.20231642 | H14: =INDEX('E1.1 Proposed Dist Rates '!$E$10:$Q$13,2,COUNTA($C$10:C14)) -> 22.65302344
C15: Contracted Demand | E15: ₵ / contracted m3 | F15: =INDEX('B1.1 Current Distribution Rates'!$E$10:$Q$13,2,COUNTA($C$10:C15)) -> 0 | H15: =INDEX('E1.1 Proposed Dist Rates '!$E$10:$Q$13,2,COUNTA($C$10:C15)) -> 0
C16: Gas Supply | E16: ₵/m3 | F16: =INDEX('B1.1 Current Distribution Rates'!$E$10:$Q$13,2,COUNTA($C$10:C16)) -> 30.6902 | H16: =INDEX('E1.1 Proposed Dist Rates '!$E$10:$Q$13,2,COUNTA($C$10:C16)) -> 30.6902
C17: Upstream Recovery Charge | E17: ₵/m3 | F17: =INDEX('B1.1 Current Distribution Rates'!$E$10:$Q$13,2,COUNTA($C$10:C17)) -> 2.92 | H17: =INDEX('E1.1 Proposed Dist Rates '!$E$10:$Q$13,2,COUNTA($C$10:C17)) -> 2.92
C18: Transportation & Storage Charge | E18: ₵/m3 | F18: =INDEX('B1.1 Current Distribution Rates'!$E$10:$Q$13,2,COUNTA($C$10:C18)) -> 5.6413 | H18: =INDEX('E1.1 Proposed Dist Rates '!$E$10:$Q$13,2,COUNTA($C$10:C18)) -> 5.6413
C19: Federal Carbon Charge | E19: ₵/m3 | F19: ='B1.1 Current Distribution Rates'!Q11 -> 9.79 | H19: ='E1.1 Proposed Dist Rates '!Q11 -> 9.79
C21: Rate Riders
C22: ='F1.3 Rate Riders'!$E$7 -> Delay in Revenue Recovery Rate Rider | E22: ₵/m3 | F22: ='C1.1 Current Rate Riders'!E11 -> 0.909 | H22: ='F1.3 Rate Riders'!E10 -> 0.909
C23: ='F1.3 Rate Riders'!$E$16 -> ECVA Rate Rider | F23: ='C1.1 Current Rate Riders'!E20 -> 0.1403 | H23: ='F1.3 Rate Riders'!$E$19 -> 0.2778363971
C24: ='C1.1 Current Rate Riders'!E35 -> EFVA Rate Rider | F24: ='C1.1 Current Rate Riders'!E38 -> 0.6608 | H24: 0
C25: ='F1.3 Rate Riders'!$E$25 -> CIACVA Rate Rider | F25: ='C1.1 Current Rate Riders'!E29 -> 0.7135 | H25: ='F1.3 Rate Riders'!$E$28 -> 3.138451332
C26: ='F1.3 Rate Riders'!$E$34 -> MTVA Rate Rider | F26: 0 | H26: ='F1.3 Rate Riders'!$E$37 -> -3.404
C28: Delivery | E28: Metric | F28: Current Rate | H28: Proposed Rate | J28: Change $ | L28: Change %
C29: Customer | E29: 12 | F29: =F10*$E29 -> 1285.90038 | H29: =H10*$E29 -> 1312.004158 | J29: =H29-F29 -> 26.10377771 | L29: =J29/F29 -> 0.0203
C30: =OneDollar -> Bill 32 Rate | E30: =E29 -> 12 | F30: =E30*F11 -> 12 | H30: =E30*H11 -> 12 | J30: 0 | L30: 0
C31: First 1000 m3 | E31: 9831.543338 | F31: =F12*$E31/100 -> 2553.03443 | H31: =H12*$E31/100 -> 2604.861029 | J31: 51.82659894 | L31: 0.0203
C32: Next 6000 m3 | E32: 17101.45666 | F32: 3996.784908 | H32: 4077.919642 | J32: 81.13473363 | L32: 0.0203
C33: GT 7000m3 | E33: 0 | F33: 0 | H33: 0 | J33: 0
C34: Contracted Demand | E34: 0 | F34: 0 | H34: 0 | J34: 0
C35: Gas Supply | E35: =SUM(E31:E34) -> 26933 | F35: 8265.791566 | H35: 8265.791566 | J35: 0 | L35: 0
C36: Upstream Recovery Charge | E36: =E35 -> 26933 | F36: 786.4436 | H36: 786.4436 | J36: 0 | L36: 0
C37: Transportation & Storage Charge | E37: =E36 -> 26933 | F37: 1519.371329 | H37: 1519.371329 | J37: 0 | L37: 0
C38: Federal Carbon Charge | E38: =E37 -> 26933 | F38: 2636.7407 | H38: 2636.7407 | J38: 0 | L38: 0
C39: Total Delivery | F39: =SUM(F29:F38) -> 21056.06691 | H39: =SUM(H29:H38) -> 21215.13202 | J39: =SUM(J29:J38) -> 159.0651103 | L39: 0.00755436003
C41: Rate Riders | E41: Metric | F41: Current Rate | H41: Proposed Rate | J41: Change $ | L41: Change %
C42: Delay in Revenue Recovery Rate Rider | E42: =E35 -> 26933 | F42: =$E42*F22/100 -> 244.82097 | H42: =$E42*H22/100 -> 244.82097 | J42: =H42-F42 -> 0 | L42: =J42/F42 -> 0
C43: ='F1.3 Rate Riders'!$E$16 -> ECVA Rate Rider | E43: =E42 -> 26933 | F43: =$E43*F23/100 -> 37.786999 | H43: =$E43*H23/100 -> 74.82967683 | J43: =H43-F43 -> 37.04267783 | L43: =J43/F43 -> 0.9803021888
C44: =C24 -> EFVA Rate Rider | E44: =E42 -> 26933 | F44: =$E44*F24/100 -> 177.973264 | H44: =$E44*H24/100 -> 0 | J44: =H44-F44 -> -177.973264 | L44: =J44/F44 -> -1
C45: ='F1.3 Rate Riders'!$E$25 -> CIACVA Rate Rider | E45: =E43 -> 26933 | F45: =$E45*F25/100 -> 192.166955 | H45: =$E45*H25/100 -> 845.2790972 | J45: 653.1121422 | L45: =J45/F45 -> 3.398670402
C46: ='F1.3 Rate Riders'!$E$34 -> MTVA Rate Rider | E46: =E45 -> 26933 | F46: =$E46*F26/100 -> 0 | H46: =$E46*H26/100 -> -916.79932 | J46: -916.79932
C47: Total Rate Riders | F47: =SUM(F42:F46) -> 652.748188 | H47: =SUM(H42:H46) -> 248.130424 | J47: =SUM(J42:J46) -> -404.617764 | L47: =J47/F47 -> -0.6198680769
C49: Total Bill Impact | F49: =F39+F47 -> 21708.8151 | H49: =H39+H47 -> 21463.26245 | J49: =J39+J47 -> -245.5526537 | L49: =J49/F49 -> -0.01131119559
C52: Rate 6 - Medium Commercial | E52: Units | F52: Current Rate | H52: Proposed Rate
C54: Customer | E54: $/month | F54: =F10 -> 107.158365 | H54: =H10 -> 109.3336798
C55: =OneDollar -> Bill 32 Rate | E55: $/month | F55: 1 | H55: 1
C56: First 1000 m3 | E56: ₵/m3 | F56: 25.96778901 | H56: 26.49493513
C57: Next 6000 m3 | E57: ₵/m3 | F57: 23.3710203 | H57: 23.84545201
C58: GT 7000m3 | E58: ₵/m3 | F58: 22.20231642 | H58: 22.65302344
C59: Contracted Demand | E59: ₵ / contracted m3 | F59: 0 | H59: 0
C60: Gas Supply | E60: ₵/m3 | F60: 30.6902 | H60: 30.6902
C61: Upstream Recovery Charge | E61: ₵/m3 | F61: 2.92 | H61: 2.92
C62: Transportation & Storage Charge | E62: ₵/m3 | F62: 5.6413 | H62: 5.6413
C63: Federal Carbon Charge | E63: ₵/m3 | F63: 9.79 | H63: 9.79
C65: Rate Riders
C66: Delay in Revenue Recovery Rate Rider | E66: ₵/m3 | F66: =F22 -> 0.909 | H66: =H22 -> 0.909
C67: ='F1.3 Rate Riders'!$E$16 -> ECVA Rate Rider | F67: =F23 -> 0.1403 | H67: ='F1.3 Rate Riders'!E19 -> 0.2778363971
C68: =C44 -> EFVA Rate Rider | F68: 0.6608 | H68: 0
C69: ='F1.3 Rate Riders'!$E$25 -> CIACVA Rate Rider | F69: 0.7135 | H69: ='F1.3 Rate Riders'!E28 -> 3.138451332
C70: ='F1.3 Rate Riders'!$E$34 -> MTVA Rate Rider | F70: 0 | H70: ='F1.3 Rate Riders'!$E$37 -> -3.404
C72: Delivery | E72: Metric | F72: Current Rate | H72: Proposed Rate | J72: Change $ | L72: Change %
C73: Customer | E73: 12 | F73: =F54*$E73 -> 1285.90038 | H73: =H54*$E73 -> 1312.004158 | J73: =H73-F73 -> 26.10377771 | L73: =J73/F73 -> 0.0203
C74: =OneDollar -> Bill 32 Rate | E74: 12 | F74: =E74*F55 -> 12 | H74: =E74*H55 -> 12 | J74: =H74-F74 -> 0 | L74: =J74/F74 -> 0
C75: First 1000 m3 | E75: 11715.32619 | F75: =F56*$E75/100 -> 3042.211186 | H75: =H56*$E75/100 -> 3103.968073 | J75: =H75-F75 -> 61.75688708 | L75: =J75/F75 -> 0.0203
C76: Next 6000 m3 | E76: 40792.71842 | F76: 9533.674503 | H76: 9727.208095 | J76: 193.5335924 | L76: 0.0203
C77: GT 7000m3 | E77: 23176.95539 | F77: 5145.820973 | H77: 5250.281139 | J77: 104.4601658 | L77: 0.0203
C78: Contracted Demand | E78: 0 | F78: 0 | H78: 0 | J78: 0
C79: Gas Supply | E79: =SUM(E75:E78) -> 75685 | F79: 23227.87787 | H79: 23227.87787 | J79: 0 | L79: 0
C80: Upstream Recovery Charge | E80: =E79 -> 75685 | F80: 2210.002 | H80: 2210.002 | J80: 0 | L80: 0
C81: Transportation & Storage Charge | E81: =E80 -> 75685 | F81: 4269.617905 | H81: 4269.617905 | J81: 0 | L81: 0
C82: Federal Carbon Charge | E82: =E81 -> 75685 | F82: 7409.5615 | H82: 7409.5615 | J82: 0 | L82: 0
C83: Total Delivery | F83: =SUM(F73:F82) -> 56136.66632 | H83: =SUM(H73:H82) -> 56522.52074 | J83: =SUM(J73:J82) -> 385.8544229 | L83: =J83/F83 -> 0.006873483024
C85: Rate Riders | E85: Metric | F85: Current Rate | H85: Proposed Rate | J85: Change $ | L85: Change %
C86: Delay in Revenue Recovery Rate Rider | E86: =E79 -> 75685 | F86: =$E86*F66/100 -> 687.97665 | H86: =$E86*H66/100 -> 687.97665 | J86: =H86-F86 -> 0 | L86: =J86/F86 -> 0
C87: ='F1.3 Rate Riders'!E16 -> ECVA Rate Rider | E87: =E86 -> 75685 | F87: =$E87*F67/100 -> 106.186055 | H87: =$E87*H67/100 -> 210.2804771 | J87: =H87-F87 -> 104.0944221 | L87: =J87/F87 -> 0.9803021888
C88: =C68 -> EFVA Rate Rider | E88: =E86 -> 75685 | F88: =$E88*F68/100 -> 500.12648 | H88: =$E88*H68/100 -> 0 | J88: =H88-F88 -> -500.12648 | L88: =J88/F88 -> -1
C89: ='F1.3 Rate Riders'!E25 -> CIACVA Rate Rider | E89: =E87 -> 75685 | F89: =$E89*F69/100 -> 540.012475 | H89: =$E89*H69/100 -> 2375.33689 | J89: 1835.324415 | L89: 3.398670402
C90: ='F1.3 Rate Riders'!E34 -> MTVA Rate Rider | E90: =E89 -> 75685 | F90: =$E90*F70/100 -> 0 | H90: =$E90*H70/100 -> -2576.3174 | J90: -2576.3174
C91: Total Rate Riders | F91: =SUM(F86:F90) -> 1834.30166 | H91: =SUM(H86:H90) -> 697.2766175 | J91: =SUM(J86:J90) -> -1137.025042 | L91: =J91/F91 -> -0.6198680769
C93: Total Bill Impact | F93: =F83+F91 -> 57970.96798 | H93: =H83+H91 -> 57219.79736 | J93: =J83+J91 -> -751.1706195 | L93: =J93/F93 -> -0.01295770358

Sheet G1.3 Rate 11 Bill Impact
C2: ='A1.1 Distributor Information'!C3 -> Name of LDC: EPCOR Natural Gas Limited Partnership
C3: ='A1.1 Distributor Information'!C4 -> OEB Application Number: EB-2022-0184 Exhibit A - 2023 Custom Incentive Application
C5: Rate 11 Delivery Bill Impact
C6: =MID(CELL("filename",A1),FIND("]",CELL("filename",A1))+1,255) -> G1.3 Rate 11 Bill Impact
C8: Rate 11 - Large Seasonal Service Sample Dryer 1 | E8: Units | F8: Current Rate | H8: Proposed Rate
C10: Customer | E10: $/month | F10: =INDEX('B1.1 Current Distribution Rates'!$E$10:$Q$13,3,COUNTA($C10:C$10)) -> 214.306539 | H10: =INDEX('E1.1 Proposed Dist Rates '!$E$10:$Q$13,3,COUNTA($C10:C$10)) -> 218.6569617
C11: =OneDollar -> Bill 32 Rate | E11: $/month | F11: =INDEX('B1.1 Current Distribution Rates'!$E$10:$Q$13,3,COUNTA($C$10:C11)) -> 1 | H11: =INDEX('E1.1 Proposed Dist Rates '!$E$10:$Q$13,3,COUNTA($C$10:C11)) -> 1
C12: All Volumes | E12: ₵/m3 | F12: =INDEX('B1.1 Current Distribution Rates'!$E$10:$Q$13,3,COUNTA($C$10:C12)) -> 16.1303148 | H12: =INDEX('E1.1 Proposed Dist Rates '!$E$10:$Q$13,3,COUNTA($C$10:C12)) -> 16.45776019
C13: Tier 2 | E13: ₵/m3 | F13: =INDEX('B1.1 Current Distribution Rates'!$E$10:$Q$13,3,COUNTA($C$10:C13)) -> 16.1303148 | H13: =INDEX('E1.1 Proposed Dist Rates '!$E$10:$Q$13,3,COUNTA($C$10:C13)) -> 16.45776019
C14: Tier 3 | E14: ₵/m3 | F14: =INDEX('B1.1 Current Distribution Rates'!$E$10:$Q$13,3,COUNTA($C$10:C14)) -> 16.1303148 | H14: =INDEX('E1.1 Proposed Dist Rates '!$E$10:$Q$13,3,COUNTA($C$10:C14)) -> 16.45776019
C15: Contracted Demand | E15: ₵ / contracted m3 | F15: =INDEX('B1.1 Current Distribution Rates'!$E$10:$Q$13,3,COUNTA($C$10:C15)) -> 0 | H15: =INDEX('E1.1 Proposed Dist Rates '!$E$10:$Q$13,3,COUNTA($C$10:C15)) -> 0
C16: Gas Supply | E16: ₵/m3 | F16: =INDEX('B1.1 Current Distribution Rates'!$E$10:$Q$13,3,COUNTA($C$10:C16)) -> 30.6902 | H16: =INDEX('E1.1 Proposed Dist Rates '!$E$10:$Q$13,3,COUNTA($C$10:C16)) -> 30.6902
C17: Upstream Recovery Charge | E17: ₵/m3 | F17: =INDEX('B1.1 Current Distribution Rates'!$E$10:$Q$13,3,COUNTA($C$10:C17)) -> 0.0352 | H17: =INDEX('E1.1 Proposed Dist Rates '!$E$10:$Q$13,3,COUNTA($C$10:C17)) -> 0.0352
C18: Transportation & Storage Charge | E18: ₵/m3 | F18: =INDEX('B1.1 Current Distribution Rates'!$E$10:$Q$13,3,COUNTA($C$10:C18)) -> 1.8166 | H18: =INDEX('E1.1 Proposed Dist Rates '!$E$10:$Q$13,3,COUNTA($C$10:C18)) -> 1.8166
C19: Federal Carbon Charge | E19: ₵/m3 | F19: ='B1.1 Current Distribution Rates'!Q12 -> 9.79 | H19: ='E1.1 Proposed Dist Rates '!Q12 -> 9.79
C21: Rate Riders
C22: Delay in Revenue Recovery Rate Rider | E22: ₵/m3 | F22: ='C1.1 Current Rate Riders'!E12 -> 0.5524 | H22: ='F1.3 Rate Riders'!E11 -> 0.5524
C23: ='F1.3 Rate Riders'!$E$16 -> ECVA Rate Rider | E23: ₵/m3 | F23: ='C1.1 Current Rate Riders'!E21 -> 0.1403 | H23: ='F1.3 Rate Riders'!E20 -> 0.1856783964
C24: ='C1.1 Current Rate Riders'!E35 -> EFVA Rate Rider | E24: ₵/m3 | F24: ='C1.1 Current Rate Riders'!E39 -> 0.1075 | H24: 0
C25: ='F1.3 Rate Riders'!$E$25 -> CIACVA Rate Rider | E25: ₵/m3 | F25: ='C1.1 Current Rate Riders'!E30 -> 0.0992 | H25: ='F1.3 Rate Riders'!E30 -> 4.531061258
C26: ='F1.3 Rate Riders'!$E$34 -> MTVA Rate Rider | E26: ₵/m3 | F26: 0 | H26: ='F1.3 Rate Riders'!E39 -> -4.5564
C28: Delivery | E28: Metric | F28: Current Rate | H28: Proposed Rate | J28: Change $ | L28: Change %
C29: Customer | E29: 12 | F29: =F10*$E29 -> 2571.678468 | H29: =H10*$E29 -> 2623.883541 | J29: =H29-F29 -> 52.2050729 | L29: =J29/F29 -> 0.0203
C30: =OneDollar -> Bill 32 Rate | E30: 12 | F30: =$E30*F11 -> 12 | H30: =$E30*H11 -> 12 | J30: 0 | L30: 0
C31: All Volumes | E31: 101499.4857 | F31: =F12*$E31/100 -> 16372.18657 | H31: =H12*$E31/100 -> 16704.54196 | J31: 332.3553874 | L31: 0.0203
C32: Tier 2 | E32: 0 | F32: 0 | H32: 0 | J32: 0
C33: Tier 3 | E33: 0 | F33: 0 | H33: 0 | J33: 0
C34: Contracted Demand | E34: 0 | F34: 0 | H34: 0 | J34: 0
C35: Gas Supply | E35: =SUM(E31:E34) -> 101499.4857 | F35: 31150.39517 | H35: 31150.39517 | J35: 0 | L35: 0
C36: Upstream Recovery Charge | E36: =E35 -> 101499.4857 | F36: 35.72781898 | H36: 35.72781898 | J36: 0 | L36: 0
C37: Transportation & Storage Charge | E37: =E36 -> 101499.4857 | F37: 1843.839658 | H37: 1843.839658 | J37: 0 | L37: 0
C38: Federal Carbon Charge | E38: =E37 -> 101499.4857 | F38: =$E38*F19/100 -> 9936.799654 | H38: =$E38*H19/100 -> 9936.799654 | J38: 0 | L38: 0
C39: Total Delivery | F39: =SUM(F29:F38) -> 61922.62734 | H39: =SUM(H29:H38) -> 62307.1878 | J39: =SUM(J29:J38) -> 384.5604603 | L39: 0.006210338236
C41: Rate Riders | E41: Metric | F41: Current Rate | H41: Proposed Rate | J41: Change $ | L41: Change %
C42: Delay in Revenue Recovery Rate Rider | E42: =E35 -> 101499.4857 | F42: =$E42*F22/100 -> 560.6831592 | H42: =$E42*H22/100 -> 560.6831592 | J42: =H42-F42 -> 0 | L42: =J42/F42 -> 0
C43: ='F1.3 Rate Riders'!$E$16 -> ECVA Rate Rider | E43: =E42 -> 101499.4857 | F43: =$E43*F23/100 -> 142.4037785 | H43: =$E43*H23/100 -> 188.4626175 | J43: =H43-F43 -> 46.05883898 | L43: =J43/F43 -> 0.3234383207
C44: =C24 -> EFVA Rate Rider | E44: =E42 -> 101499.4857 | F44: =$E44*F24/100 -> 109.1119472 | H44: =$E44*H24/100 -> 0 | J44: =H44-F44 -> -109.1119472 | L44: =J44/F44 -> -1
C45: ='F1.3 Rate Riders'!$E$25 -> CIACVA Rate Rider | E45: =E43 -> 101499.4857 | F45: =$E45*F25/100 -> 100.6874899 | H45: =$E45*H25/100 -> 4599.003875 | J45: 4498.316385 | L45: 44.67602074
C46: ='F1.3 Rate Riders'!$E$34 -> MTVA Rate Rider | E46: =E45 -> 101499.4857 | F46: =$E46*F26/100 -> 0 | H46: =$E46*H26/100 -> -4624.722568 | J46: -4624.722568
C47: Total Rate Riders | F47: =SUM(F42:F46) -> 912.8863747 | H47: =SUM(H42:H46) -> 723.4270834 | J47: -189.4592913 | L47: =J47/F47 -> -0.2075387436
C49: Total Bill Impact | F49: =F39+F47 -> 62835.51371 | H49: =H39+H47 -> 63030.61488 | J49: =J39+J47 -> 195.101169 | L49: =J49/F49 -> 0.003104950648
C51: Rate 11 - Large Seasonal Service Sample Dryer 2 | E51: Units | F51: Current Rate | H51: Proposed Rate
C53: Customer | E53: $/month | F53: =F10 -> 214.306539 | H53: =H10 -> 218.6569617
C54: =OneDollar -> Bill 32 Rate | E54: $/month | F54: 1 | H54: 1
C55: All Volumes | E55: ₵/m3 | F55: =F12 -> 16.1303148 | H55: =H12 -> 16.45776019
C56: Tier 2 | E56: ₵/m3 | F56: 16.1303148 | H56: 16.45776019
C57: Tier 3 | E57: ₵/m3 | F57: 16.1303148 | H57: 16.45776019
C58: Contracted Demand | E58: ₵ / contracted m3 | F58: 0 | H58: 0
C59: Gas Supply | E59: ₵/m3 | F59: 30.6902 | H59: 30.6902
C60: Upstream Recovery Charge | E60: ₵/m3 | F60: 0.0352 | H60: 0.0352
C61: Transportation & Storage Charge | E61: ₵/m3 | F61: 1.8166 | H61: 1.8166
C62: Federal Carbon Charge | E62: ₵/m3 | F62: 3.91 | H62: 3.91
C64: Rate Riders
C65: Delay in Revenue Recovery Rate Rider | E65: ₵/m3 | F65: =F22 -> 0.5524 | H65: =H22 -> 0.5524
C66: ='F1.3 Rate Riders'!$E$16 -> ECVA Rate Rider | E66: ₵/m3 | F66: =F23 -> 0.1403 | H66: =H23 -> 0.1856783964
C67: =C44 -> EFVA Rate Rider | E67: ₵/m3 | F67: =F24 -> 0.1075 | H67: =H24 -> 0
C68: ='F1.3 Rate Riders'!$E$25 -> CIACVA Rate Rider | E68: ₵/m3 | F68: =F25 -> 0.0992 | H68: =H25 -> 4.531061258
C69: ='F1.3 Rate Riders'!$E$34 -> MTVA Rate Rider | E69: ₵/m3 | F69: =F26 -> 0 | H69: =H26 -> -4.5564
C71: Delivery | E71: Metric | F71: Current Rate | H71: Proposed Rate | J71: Change $ | L71: Change %
C72: Customer | E72: 12 | F72: =F53*$E72 -> 2571.678468 | H72: =H53*$E72 -> 2623.883541 | J72: =H72-F72 -> 52.2050729 | L72: =J72/F72 -> 0.0203
C73: =OneDollar -> Bill 32 Rate | E73: 12 | F73: =$E73*F54 -> 12 | H73: =$E73*H54 -> 12 | J73: =H73-F73 -> 0 | L73: =J73/F73 -> 0
C74: All Volumes | E74: 338331.6191 | F74: =F55*$E74/100 -> 54573.95523 | H74: =H55*$E74/100 -> 55681.80652 | J74: =H74-F74 -> 1107.851291 | L74: =J74/F74 -> 0.0203
C75: Tier 2 | E75: 0 | F75: 0 | H75: 0 | J75: 0
C76: Tier 3 | E76: 0 | F76: 0 | H76: 0 | J76: 0
C77: Contracted Demand | E77: 0 | F77: 0 | H77: 0 | J77: 0
C78: Gas Supply | E78: =SUM(E74:E77) -> 338331.6191 | F78: 103834.6506 | H78: 103834.6506 | J78: 0 | L78: 0
C79: Upstream Recovery Charge | E79: =E78 -> 338331.6191 | F79: 119.0927299 | H79: 119.0927299 | J79: 0 | L79: 0
C80: Transportation & Storage Charge | E80: =E79 -> 338331.6191 | F80: 6146.132193 | H80: 6146.132193 | J80: 0 | L80: 0
C81: Federal Carbon Charge | E81: =E80 -> 338331.6191 | F81: =$E81*F62/100 -> 13228.76631 | H81: =$E81*H62/100 -> 13228.76631 | J81: 0 | L81: 0
C82: Total Delivery | F82: =SUM(F72:F81) -> 180486.2755 | H82: =SUM(H72:H81) -> 181646.3319 | J82: =SUM(J72:J81) -> 1160.056364 | L82: =J82/F82 -> 0.006427393778
C84: Rate Riders | E84: Metric | F84: Current Rate | H84: Proposed Rate | J84: Change $ | L84: Change %
C85: Delay in Revenue Recovery Rate Rider | E85: =E78 -> 338331.6191 | F85: =$E85*F65/100 -> 1868.943864 | H85: =$E85*H65/100 -> 1868.943864 | J85: =H85-F85 -> 0 | L85: =J85/F85 -> 0
C86: ='F1.3 Rate Riders'!$E$16 -> ECVA Rate Rider | E86: =E85 -> 338331.6191 | F86: =$E86*F66/100 -> 474.6792616 | H86: =$E86*H66/100 -> 628.2087249 | J86: =H86-F86 -> 153.5294633 | L86: =J86/F86 -> 0.3234383207
C87: =C67 -> EFVA Rate Rider | E87: =E85 -> 338331.6191 | F87: =$E87*F67/100 -> 363.7064906 | H87: =$E87*H67/100 -> 0 | J87: =H87-F87 -> -363.7064906 | L87: =J87/F87 -> -1
C88: ='F1.3 Rate Riders'!$E$25 -> CIACVA Rate Rider | E88: =E86 -> 338331.6191 | F88: =$E88*F68/100 -> 335.6249662 | H88: =$E88*H68/100 -> 15330.01292 | J88: 14994.38795 | L88: 44.67602074
C89: ='F1.3 Rate Riders'!$E$34 -> MTVA Rate Rider | E89: =E88 -> 338331.6191 | F89: =$E89*F69/100 -> 0 | H89: =$E89*H69/100 -> -15415.74189 | J89: -15415.74189
C90: Total Rate Riders | F90: =SUM(F85:F89) -> 3042.954582 | H90: =SUM(H85:H89) -> 2411.423611 | J90: =SUM(J85:J89) -> -631.5309709 | L90: =J90/F90 -> -0.2075387436
C92: Total Bill Impact | F92: =F82+F90 -> 183529.2301 | H92: =H82+H90 -> 184057.7555 | J92: =J82+J90 -> 528.5253932 | L92: =J92/F92 -> 0.002879788647

Sheet G1.4 Rate 16 Bill Impact
C2: ='A1.1 Distributor Information'!C3 -> Name of LDC: EPCOR Natural Gas Limited Partnership
C3: ='A1.1 Distributor Information'!C4 -> OEB Application Number: EB-2022-0184 Exhibit A - 2023 Custom Incentive Application
C5: Rate 16 Delivery Bill Impact
C6: =MID(CELL("filename",A1),FIND("]",CELL("filename",A1))+1,255) -> G1.4 Rate 16 Bill Impact
C8: Rate 16 - Contracted Demand | E8: Units | F8: Current Rate | H8: Proposed Rate
C10: Customer | E10: $/month | F10: =INDEX('B1.1 Current Distribution Rates'!$E$10:$Q$13,4,COUNTA($C$10:C10)) -> 1575.783375 | H10: =INDEX('E1.1 Proposed Dist Rates '!$E$10:$Q$13,4,COUNTA($C$10:C10)) -> 1607.771778
C11: =OneDollar -> Bill 32 Rate | E11: $/month | F11: =INDEX('B1.1 Current Distribution Rates'!$E$10:$Q$13,4,COUNTA($C$10:C11)) -> 1 | H11: =INDEX('E1.1 Proposed Dist Rates '!$E$10:$Q$13,4,COUNTA($C$10:C11)) -> 1
C12: Tier 1 | E12: ₵/m3 | F12: =INDEX('B1.1 Current Distribution Rates'!$E$10:$Q$13,4,COUNTA($C$10:C12)) -> 0 | H12: =INDEX('E1.1 Proposed Dist Rates '!$E$10:$Q$13,4,COUNTA($C$10:C12)) -> 0
C13: Tier 2 | E13: ₵/m3 | F13: =INDEX('B1.1 Current Distribution Rates'!$E$10:$Q$13,4,COUNTA($C$10:C13)) -> 0 | H13: =INDEX('E1.1 Proposed Dist Rates '!$E$10:$Q$13,4,COUNTA($C$10:C13)) -> 0
C14: Tier 3 | E14: ₵/m3 | F14: =INDEX('B1.1 Current Distribution Rates'!$E$10:$Q$13,4,COUNTA($C$10:C14)) -> 0 | H14: =INDEX('E1.1 Proposed Dist Rates '!$E$10:$Q$13,4,COUNTA($C$10:C14)) -> 0
C15: Contracted Demand | E15: ₵ / contracted m3 | F15: =INDEX('B1.1 Current Distribution Rates'!$E$10:$Q$13,4,COUNTA($C$10:C15)) -> 107.4830503 | H15: =INDEX('E1.1 Proposed Dist Rates '!$E$10:$Q$13,4,COUNTA($C$10:C15)) -> 109.6649562
C16: Gas Supply | E16: ₵/m3 | F16: =INDEX('B1.1 Current Distribution Rates'!$E$10:$Q$13,4,COUNTA($C$10:C16)) -> 0 | H16: =INDEX('E1.1 Proposed Dist Rates '!$E$10:$Q$13,4,COUNTA($C$10:C16)) -> 0
C17: Upstream Recovery Charge | E17: ₵ / contracted m3 | F17: =INDEX('B1.1 Current Distribution Rates'!$E$10:$Q$13,4,COUNTA($C$10:C17)) -> 14.2434 | H17: =INDEX('E1.1 Proposed Dist Rates '!$E$10:$Q$13,4,COUNTA($C$10:C17)) -> 14.2434
C18: Transportation Charge From Dawn | E18: ₵ / contracted m3 | F18: =INDEX('B1.1 Current Distribution Rates'!$E$10:$Q$13,4,COUNTA($C$10:C18)+1) -> 18.2999 | H18: =INDEX('E1.1 Proposed Dist Rates '!$E$10:$Q$13,4,COUNTA($C$10:C18)+1) -> 18.2999
C19: Transportation Charge From Kirkwall | E19: ₵ / contracted m3 | F19: =INDEX('B1.1 Current Distribution Rates'!$E$10:$Q$13,4,COUNTA($C$10:C19)+1) -> 11.848 | H19: =INDEX('E1.1 Proposed Dist Rates '!$E$10:$Q$13,4,COUNTA($C$10:C19)+1) -> 11.848
C20: Transportation Charge From Parkway | E20: ₵ / contracted m3 | F20: =INDEX('B1.1 Current Distribution Rates'!$E$10:$Q$13,4,COUNTA($C$10:C20)+1) -> 11.848 | H20: =INDEX('E1.1 Proposed Dist Rates '!$E$10:$Q$13,4,COUNTA($C$10:C20)+1) -> 11.848
C21: Federal Carbon Charge | E21: ₵/m3 | F21: =INDEX('B1.1 Current Distribution Rates'!$E$10:$Q$13,4,COUNTA($C$10:C21)+1) -> 9.79 | H21: =INDEX('E1.1 Proposed Dist Rates '!$E$10:$Q$13,4,COUNTA($C$10:C21)+1) -> 9.79
C23: Rate Riders
C24: Delay in Revenue Recovery Rate Rider | E24: ₵ / contracted m3 | F24: ='C1.1 Current Rate Riders'!E13 -> 0.0601 | H24: ='F1.3 Rate Riders'!E12 -> 0.0601
C25: ='F1.3 Rate Riders'!$E$16 -> ECVA Rate Rider | E25: ₵ / contracted m3 | F25: ='C1.1 Current Rate Riders'!E23 -> 0 | H25: ='F1.3 Rate Riders'!E21 -> 0
C26: ='C1.1 Current Rate Riders'!E35 -> EFVA Rate Rider | E26: ₵ / contracted m3 | F26: ='C1.1 Current Rate Riders'!E40 -> 0.7964 | H26: 0
C27: ='F1.3 Rate Riders'!$E$25 -> CIACVA Rate Rider | E27: ₵ / contracted m3 | F27: ='C1.1 Current Rate Riders'!E31 -> 0.9603 | H27: ='F1.3 Rate Riders'!E30 -> 4.531061258
C28: ='F1.3 Rate Riders'!$E$34 -> MTVA Rate Rider | E28: ₵ / contracted m3 | F28: ='C1.1 Current Rate Riders'!E16 -> 0 | H28: ='F1.3 Rate Riders'!E39 -> -4.5564
C30: Delivery | E30: Metric | F30: Current Rate | H30: Proposed Rate | J30: Change $ | L30: Change %
C31: Customer | E31: 12 | F31: =F10*$E31 -> 18909.4005 | H31: =H10*$E31 -> 19293.26133 | J31: =H31-F31 -> 383.8608301 | L31: =J31/F31 -> 0.0203
C32: =OneDollar -> Bill 32 Rate | E32: =E31 -> 12 | F32: =$E32*F11 -> 12 | H32: =$E32*H11 -> 12 | J32: 0 | L32: 0
C33: Tier 1 | E33: 0 | F33: =F12*$E33/100 -> 0 | H33: =H12*$E33/100 -> 0 | J33: 0
C34: Tier 2 | E34: 0 | F34: =F13*$E34/100 -> 0 | H34: =H13*$E34/100 -> 0 | J34: 0
C35: Tier 3 | E35: 0 | F35: =F14*$E35/100 -> 0 | H35: =H14*$E35/100 -> 0 | J35: 0
C36: Contracted Demand | E36: 50000 | F36: =F15*$E36/100*$E$31 -> 644898.3016 | H36: =H15*$E36/100*$E$31 -> 657989.7371 | J36: 13091.43552 | L36: 0.0203
C37: Gas Supply | E37: 0 | F37: =F16*$E37/100 -> 0 | H37: =H16*$E37/100 -> 0 | J37: 0
C38: Upstream Recovery Charge | E38: =$E$36 -> 50000 | F38: =F17*$E38/100*$E$31 -> 85460.4 | H38: =H17*$E38/100*$E$31 -> 85460.4 | J38: 0 | L38: 0
C39: Transportation Charge From Dawn | E39: =$E$36 -> 50000 | F39: =F18*$E39/100*$E$31 -> 109799.4 | H39: =H18*$E39/100*$E$31 -> 109799.4 | J39: 0 | L39: 0
C40: Transportation Charge From Kirkwall | E40: 0 | F40: =F19*$E40/100*$E$31 -> 0 | H40: =H19*$E40/100*$E$31 -> 0 | J40: 0
C41: Transportation Charge From Parkway | E41: 0 | F41: =F20*$E41/100*$E$31 -> 0 | H41: =H20*$E41/100*$E$31 -> 0 | J41: 0
C42: Federal Carbon Charge | E42: =$E$36 -> 50000 | F42: =$E42*F21/100*$E$31 -> 58740 | H42: =$E42*H21/100*$E$31 -> 58740 | J42: 0 | L42: 0
C43: Total Delivery | F43: =SUM(F31:F42) -> 917819.5021 | H43: =SUM(H31:H42) -> 931294.7984 | J43: =SUM(J31:J42) -> 13475.29635 | L43: 0.01468185882
C45: Rate Riders | E45: Metric | F45: Current Rate | H45: Proposed Rate | J45: Change $ | L45: Change %
C46: Delay in Revenue Recovery Rate Rider | E46: =E31 -> 12 | F46: =$E$46*$E36*$F24/100 -> 360.6 | H46: =$E$46*$E36*$H24/100 -> 360.6 | J46: =H46-F46 -> 0 | L46: =J46/F46 -> 0
C47: ='F1.3 Rate Riders'!$E$16 -> ECVA Rate Rider | E47: =E46 -> 12 | F47: =$E$46*$E42*$F25/100 -> 0 | H47: =$E$46*$E42*$H25/100 -> 0 | J47: =H47-F47 -> 0 | L47: =J47/F47 -> 
C48: ='C1.1 Current Rate Riders'!E35 -> EFVA Rate Rider | E48: =E46 -> 12 | F48: =$E$46*$E38*$F26/100 -> 4778.4 | H48: =$E$46*$E37*$H26/100 -> 0 | J48: =H48-F48 -> -4778.4 | L48: =J48/F48 -> -1
C49: ='F1.3 Rate Riders'!$E$25 -> CIACVA Rate Rider | E49: =E47 -> 12 | F49: =$E$46*$E38*$F27/100 -> 5761.8 | H49: =$E$46*$E38*$H27/100 -> 27186.36755 | J49: 21424.56755 | L49: 3.718380983
C50: ='F1.3 Rate Riders'!$E$34 -> MTVA Rate Rider | E50: =E49 -> 12 | F50: =$E$46*$E39*$F28/100 -> 0 | H50: =$E$46*$E39*$H28/100 -> -27338.4 | J50: -27338.4
C51: Total Rate Riders | F51: =SUM(F46:F50) -> 10900.8 | G51: =SUM(G46:G50) -> 0 | H51: 208.5675456 | I51: 0 | J51: -10692.23245 | L51: =J51/F51 -> -0.9808667671
C53: Total Bill Impact | F53: =F43+F51 -> 928720.3021 | H53: =H43+H51 -> 931503.366 | J53: =J43+J51 -> 2783.063897 | L53: =J53/F53 -> 0.002996665294

Sheet G1.7 Summary of Bill Impacts
C2: ='A1.1 Distributor Information'!C3 -> Name of LDC: EPCOR Natural Gas Limited Partnership
C3: ='A1.1 Distributor Information'!C4 -> OEB Application Number: EB-2022-0184 Exhibit A - 2023 Custom Incentive Application
C5: Summary of Bill Impacts
C7: =MID(CELL("filename",A1),FIND("]",CELL("filename",A1))+1,255) -> G1.7 Summary of Bill Impacts
C8: Rate Class | E8: Fixed Change | F8: =OneDollar -> Bill 32 Rate | G8: Volumetric Change | H8: Rate Riders | I8: Upstream Recovery Charge | J8: Transportation & Storage Charge | K8: Federal Carbon Charge Change | L8: Total Change | M8: Total Change %
E9: ($/year) | F9: ($/year) | G9: ($/year) | H9: ($/year) | I9: ($/year) | J9: ($/year) | K9: ($/year) | L9: ($/year)
C10: Rate 1 | D10: Existing Residential | E10: ='G1.1 Rate 1 Bill Impact'!J31 -> 6.399956153 | F10: ='G1.1 Rate 1 Bill Impact'!J32 -> 0 | G10: =SUM('G1.1 Rate 1 Bill Impact'!J33:J36) -> 12.1505398 | H10: ='G1.1 Rate 1 Bill Impact'!J49 -> -6.693298362 | I10: ='G1.1 Rate 1 Bill Impact'!J38 -> 0 | J10: ='G1.1 Rate 1 Bill Impact'!J39 -> 0 | K10: ='G1.1 Rate 1 Bill Impact'!J40 -> 0 | L10: =SUM(E10:K10) -> 11.85719759 | M10: ='G1.1 Rate 1 Bill Impact'!L51 -> 0.006092011377
C11: Rate 1 | D11: New Residential | E11: ='G1.1 Rate 1 Bill Impact'!J75 -> 6.399956153 | F11: ='G1.1 Rate 1 Bill Impact'!J76 -> 0 | G11: =SUM('G1.1 Rate 1 Bill Impact'!J77:J78) -> 11.68468586 | H11: ='G1.1 Rate 1 Bill Impact'!J93 -> -6.434785676 | I11: ='G1.1 Rate 1 Bill Impact'!J82 -> 0 | J11: ='G1.1 Rate 1 Bill Impact'!J83 -> 0 | K11: ='G1.1 Rate 1 Bill Impact'!J84 -> 0 | L11: =SUM(E11:K11) -> 11.64985633 | M11: ='G1.1 Rate 1 Bill Impact'!L95 -> 0.00618361601
C12: Rate 1 | D12: Small Commercial | E12: ='G1.1 Rate 1 Bill Impact'!J118 -> 6.399956153 | F12: ='G1.1 Rate 1 Bill Impact'!J119 -> 0 | G12: =SUM('G1.1 Rate 1 Bill Impact'!J120:J123) -> 26.25441761 | H12: ='G1.1 Rate 1 Bill Impact'!J136 -> -14.61686795 | I12: ='G1.1 Rate 1 Bill Impact'!J125 -> 0 | J12: ='G1.1 Rate 1 Bill Impact'!J126 -> 0 | K12: ='G1.1 Rate 1 Bill Impact'!J127 -> 0 | L12: 18.03750581 | M12: ='G1.1 Rate 1 Bill Impact'!L138 -> 0.004685992416
C13: Rate 1 | D13: Small Agricultural | E13: ='G1.1 Rate 1 Bill Impact'!J161 -> 6.399956153 | F13: ='G1.1 Rate 1 Bill Impact'!J162 -> 0 | G13: =SUM('G1.1 Rate 1 Bill Impact'!J163:J166) -> 26.40284959 | H13: ='G1.1 Rate 1 Bill Impact'!J179 -> -14.70096243 | I13: ='G1.1 Rate 1 Bill Impact'!J168 -> 0 | J13: ='G1.1 Rate 1 Bill Impact'!J169 -> 0 | K13: ='G1.1 Rate 1 Bill Impact'!J170 -> 0 | L13: 18.10184331 | M13: ='G1.1 Rate 1 Bill Impact'!L181 -> 0.004678236693
C14: Rate 6 | D14: Medium Commercial | E14: ='G1.2 Rate 6 Bill Impact'!J29 -> 26.10377771 | F14: ='G1.2 Rate 6 Bill Impact'!J30 -> 0 | G14: =SUM('G1.2 Rate 6 Bill Impact'!J31:J34) -> 132.9613326 | H14: ='G1.2 Rate 6 Bill Impact'!J47 -> -404.617764 | I14: ='G1.2 Rate 6 Bill Impact'!J36 -> 0 | J14: ='G1.2 Rate 6 Bill Impact'!J37 -> 0 | K14: ='G1.2 Rate 6 Bill Impact'!J38 -> 0 | L14: -245.5526537 | M14: ='G1.2 Rate 6 Bill Impact'!L49 -> -0.01131119559
C15: Rate 6 | D15: Large Commercial | E15: ='G1.2 Rate 6 Bill Impact'!J73 -> 26.10377771 | F15: ='G1.2 Rate 6 Bill Impact'!J74 -> 0 | G15: =SUM('G1.2 Rate 6 Bill Impact'!J75:J78) -> 359.7506452 | H15: ='G1.2 Rate 6 Bill Impact'!J91 -> -1137.025042 | I15: ='G1.2 Rate 6 Bill Impact'!J80 -> 0 | J15: ='G1.2 Rate 6 Bill Impact'!J81 -> 0 | K15: ='G1.2 Rate 6 Bill Impact'!J82 -> 0 | L15: -751.1706195 | M15: ='G1.2 Rate 6 Bill Impact'!L93 -> -0.01295770358
C16: Rate 11 | D16: Sample Dryer 1 | E16: ='G1.3 Rate 11 Bill Impact'!J29 -> 52.2050729 | F16: ='G1.3 Rate 11 Bill Impact'!J30 -> 0 | G16: =SUM('G1.3 Rate 11 Bill Impact'!J31:J34) -> 332.3553874 | H16: ='G1.3 Rate 11 Bill Impact'!J47 -> -189.4592913 | I16: ='G1.3 Rate 11 Bill Impact'!J36 -> 0 | J16: ='G1.3 Rate 11 Bill Impact'!J37 -> 0 | K16: ='G1.3 Rate 11 Bill Impact'!J38 -> 0 | L16: 195.101169 | M16: ='G1.3 Rate 11 Bill Impact'!L49 -> 0.003104950648
C17: Rate 11 | D17: Sample Dryer 2 | E17: ='G1.3 Rate 11 Bill Impact'!J72 -> 52.2050729 | F17: ='G1.3 Rate 11 Bill Impact'!J73 -> 0 | G17: =SUM('G1.3 Rate 11 Bill Impact'!J74:J77) -> 1107.851291 | H17: ='G1.3 Rate 11 Bill Impact'!J90 -> -631.5309709 | I17: ='G1.3 Rate 11 Bill Impact'!J79 -> 0 | J17: ='G1.3 Rate 11 Bill Impact'!J80 -> 0 | K17: ='G1.3 Rate 11 Bill Impact'!J81 -> 0 | L17: 528.5253932 | M17: ='G1.3 Rate 11 Bill Impact'!L92 -> 0.002879788647
C18: Rate 16 | D18: Contracted Demand | E18: ='G1.4 Rate 16 Bill Impact'!J31 -> 383.8608301 | F18: ='G1.4 Rate 16 Bill Impact'!J32 -> 0 | G18: =SUM('G1.4 Rate 16 Bill Impact'!J33:J36) -> 13091.43552 | H18: ='G1.4 Rate 16 Bill Impact'!J51 -> -10692.23245 | I18: ='G1.4 Rate 16 Bill Impact'!J38 -> 0 | J18: =SUM('G1.4 Rate 16 Bill Impact'!J39:J41) -> 0 | K18: ='G1.4 Rate 16 Bill Impact'!J42 -> 0 | L18: 2783.063897 | M18: ='G1.4 Rate 16 Bill Impact'!L53 -> 0.002996665294
